Workbook

Sheet Menu
H5: Data Import will ask you for the CSV file exported from Smart Thumper, It will import the data and convert it to Imperial and SI and then
H6: let you update the dataset with adjusted sample weights and moisture content. The default moisture content used in Smart thumper is 12 Percent.
H7: You may update the weight or MC on the INPUT tab. If you do not update MC leave at zero. Smart Thumper Calc will use an updated weight in lbs first if there is
H8: a number greater than zero. If you enter updated weights in KG make sure the numbers in the lbs column are zero.
U9: Set to Desired
H10: Refresh your results after entering weight or MC data. If you have updated data enter it on the Input tab in the colored columns. | U10: Final Adjusted MC %
H11: Otherwise leave the colored columns Zero and not adjustments will be made. | V11: 15
U12: If Adjusting Moisture
U13: Procedures for Developing
H14: Export will prompt you for a location to create an export workbook with the name of "current date + Smart Thumper Results" | U14: Allowable Properties for a
H15: Go to the location given to find your results | U15: Single Species Under ASTM D1990
U16: and Computer Programs Useful for
U17: the Calculations by
U18: James W. Evans, David E. Kretschmann,
U19: Victoria L. Herian, and David W. Green

Sheet Input
A1: Specimen No. | B1: Test Method | C1: Date | D1: Species | E1: Depth | F1: Width | G1: Cross Section Size | H1: Length | I1: Weight | J1: Frequency | K1: Stiffness | L1: Equivalent To | M1: Weight | N1: Weight | O1: Current
M2: lbs | N2: Kg | O2: MC%
A3: a | B3: Vibration | C3: 2018-12-06 | D3: Southern Yellow Pine | E3: 2 Inch | F3: 8 Inch | G3: 2x8 | H3: 12 Feet | I3: 41.61865 lb | J3: 6.05 Hz | K3: 0.90 Mpsi | L3: No. 3 | M3: 0 | N3: 0 | O3: 0
A4: a - 1 | B4: Vibration | C4: 2018-12-06 | D4: Southern Yellow Pine | E4: 2 Inch | F4: 8 Inch | G4: 2x8 | H4: 12 Feet | I4: 41.61865 lb | J4: 6.25 Hz | K4: 0.96 Mpsi | L4: No. 3 | M4: 0 | N4: 0 | O4: 0
A5: b | B5: Vibration | C5: 2018-12-06 | D5: Southern Yellow Pine | E5: 5.08 Centimeter | F5: 20.32 Centimeter | G5: 5.08x20.32 | H5: 3.658 Meter | I5: 18.87996224 Kg | J5: 7.23 Hz | K5: 8845.86 MPa | L5: No. 3 | M5: 0 | N5: 0 | O5: 0
A6: b - 1 | B6: Vibration | C6: 2018-12-06 | D6: Southern Yellow Pine | E6: 5.08 Centimeter | F6: 20.32 Centimeter | G6: 5.08x20.32 | H6: 3.658 Meter | I6: 18.87996224 Kg | J6: 5.86 Hz | K6: 5811.11 MPa | L6: No. 3 | M6: 0 | N6: 0 | O6: 0
A7: T | B7: Vibration | C7: 15-06-2018 | D7: Southern Yellow Pine | E7: 1.5 Inch | F7: 7.25 Inch | G7: 1.5x7.25 | H7: 12 Feet | I7: 28.287676 lb | J7: 6.45 Hz | K7: 1.81 Mpsi | L7: No. 1 | M7: 0 | N7: 0 | O7: 0
A8: T - 1 | B8: Vibration | C8: 15-06-2018 | D8: Southern Yellow Pine | E8: 1.5 Inch | F8: 7.25 Inch | G8: 1.5x7.25 | H8: 12 Feet | I8: 28.287676 lb | J8: 6.05 Hz | K8: 1.60 Mpsi | L8: No. 2 | M8: 0 | N8: 0 | O8: 0
A9: T - 2 | B9: Vibration | C9: 15-06-2018 | D9: Southern Yellow Pine | E9: 1.5 Inch | F9: 7.25 Inch | G9: 1.5x7.25 | H9: 12 Feet | I9: 28.287676 lb | J9: 6.64 Hz | K9: 1.92 Mpsi | L9: No. 1 | M9: 0 | N9: 0 | O9: 0
A10: T - 3 | B10: Vibration | C10: 15-06-2018 | D10: Southern Yellow Pine | E10: 1.5 Inch | F10: 7.25 Inch | G10: 1.5x7.25 | H10: 12 Feet | I10: 28.287676 lb | J10: 6.45 Hz | K10: 1.81 Mpsi | L10: No. 1 | M10: 0 | N10: 0 | O10: 0
A11: T - 4 | B11: Vibration | C11: 15-06-2018 | D11: Southern Yellow Pine | E11: 1.5 Inch | F11: 7.25 Inch | G11: 1.5x7.25 | H11: 12 Feet | I11: 28.287676 lb | J11: 6.05 Hz | K11: 1.60 Mpsi | L11: No. 2 | M11: 0 | N11: 0 | O11: 0
A12: T - 5 | B12: Vibration | C12: 15-06-2018 | D12: Southern Yellow Pine | E12: 1.5 Inch | F12: 7.25 Inch | G12: 1.5x7.25 | H12: 12 Feet | I12: 28.287676 lb | J12: 6.64 Hz | K12: 1.92 Mpsi | L12: No. 1 | M12: 0 | N12: 0 | O12: 0
A13: T - 6 | B13: Vibration | C13: 15-06-2018 | D13: Southern Yellow Pine | E13: 3.81 Centimeter | F13: 18.415 Centimeter | G13: 3.81x18.415 | H13: 3.658 Meter | I13: 12.832474335 Kg | J13: 6.45 Hz | K13: 12515.85 MPa | L13: No. 1 | M13: 0 | N13: 0 | O13: 0
A14: T - 7 | B14: Vibration | C14: 15-06-2018 | D14: Southern Yellow Pine | E14: 3.81 Centimeter | F14: 18.415 Centimeter | G14: 3.81x18.415 | H14: 3.658 Meter | I14: 12.832474335 Kg | J14: 6.05 Hz | K14: 11011.63 MPa | L14: No. 2 | M14: 0 | N14: 0 | O14: 0
A15: T - 8 | B15: Vibration | C15: 15-06-2018 | D15: Southern Yellow Pine | E15: 3.81 Centimeter | F15: 18.415 Centimeter | G15: 3.81x18.415 | H15: 3.658 Meter | I15: 12.832474335 Kg | J15: 6.64 Hz | K15: 13264.08 MPa | L15: No. 1 | M15: 0 | N15: 0 | O15: 0
A16: T - 9 | B16: Vibration | C16: 15-06-2018 | D16: Southern Yellow Pine | E16: 3.81 Centimeter | F16: 18.415 Centimeter | G16: 3.81x18.415 | H16: 3.658 Meter | I16: 12.832474335 Kg | J16: 6.45 Hz | K16: 12515.85 MPa | L16: No. 1 | M16: 0 | N16: 0 | O16: 0
A17: T - 10 | B17: Vibration | C17: 15-06-2018 | D17: Southern Yellow Pine | E17: 3.81 Centimeter | F17: 18.415 Centimeter | G17: 3.81x18.415 | H17: 3.658 Meter | I17: 12.832474335 Kg | J17: 6.05 Hz | K17: 11011.63 MPa | L17: No. 2 | M17: 0 | N17: 0 | O17: 0
A18: T - 11 | B18: Vibration | C18: 15-06-2018 | D18: Southern Yellow Pine | E18: 3.81 Centimeter | F18: 18.415 Centimeter | G18: 3.81x18.415 | H18: 3.658 Meter | I18: 12.832474335 Kg | J18: 6.64 Hz | K18: 13264.08 MPa | L18: No. 1 | M18: 0 | N18: 0 | O18: 0
A19: T - 12 | B19: Soundwave | C19: 15-06-2018 | D19: Southern Yellow Pine | E19: 1.5 Inch | F19: 7.25 Inch | G19: 1.5x7.25 | H19: 12.001 Feet | I19: 28.290033 lb | J19: 678.46 Hz | K19: 1.79 Mpsi | L19: No. 2 | M19: 0 | N19: 0 | O19: 0
A20: T - 13 | B20: Soundwave | C20: 15-06-2018 | D20: Southern Yellow Pine | E20: 1.5 Inch | F20: 7.25 Inch | G20: 1.5x7.25 | H20: 12.001 Feet | I20: 28.290033 lb | J20: 658.21 Hz | K20: 1.68 Mpsi | L20: No. 2 | M20: 0 | N20: 0 | O20: 0
A21: T - 14 | B21: Soundwave | C21: 15-06-2018 | D21: Southern Yellow Pine | E21: 1.5 Inch | F21: 7.25 Inch | G21: 1.5x7.25 | H21: 12.001 Feet | I21: 28.290033 lb | J21: 639.13 Hz | K21: 1.58 Mpsi | L21: No. 2 | M21: 0 | N21: 0 | O21: 0
A22: T - 15 | B22: Soundwave | C22: 15-06-2018 | D22: Southern Yellow Pine | E22: 1.5 Inch | F22: 7.25 Inch | G22: 1.5x7.25 | H22: 12.001 Feet | I22: 28.290033 lb | J22: 722.95 Hz | K22: 2.03 Mpsi | L22: No. 1 | M22: 0 | N22: 0 | O22: 0
A23: T - 16 | B23: Soundwave | C23: 15-06-2018 | D23: Southern Yellow Pine | E23: 1.5 Inch | F23: 7.25 Inch | G23: 1.5x7.25 | H23: 12.001 Feet | I23: 28.290033 lb | J23: 678.46 Hz | K23: 1.79 Mpsi | L23: No. 2 | M23: 0 | N23: 0 | O23: 0
A24: T - 17 | B24: Soundwave | C24: 15-06-2018 | D24: Southern Yellow Pine | E24: 1.5 Inch | F24: 7.25 Inch | G24: 1.5x7.25 | H24: 12.001 Feet | I24: 28.290033 lb | J24: 648.53 Hz | K24: 1.63 Mpsi | L24: No. 2 | M24: 0 | N24: 0 | O24: 0
A25: T - 18 | B25: Soundwave | C25: 15-06-2018 | D25: Southern Yellow Pine | E25: 1.5 Inch | F25: 7.25 Inch | G25: 1.5x7.25 | H25: 12.001 Feet | I25: 28.290033 lb | J25: 722.95 Hz | K25: 2.03 Mpsi | L25: No. 1 | M25: 0 | N25: 0 | O25: 0
A26: T - 19 | B26: Soundwave | C26: 15-06-2018 | D26: Southern Yellow Pine | E26: 3.81 Centimeter | F26: 18.415 Centimeter | G26: 3.81x18.415 | H26: 3.658 Meter | I26: 12.832474335 Kg | J26: 668.18 Hz | K26: 11948.25 MPa | L26: No. 2 | M26: 0 | N26: 0 | O26: 0
A27: T - 20 | B27: Soundwave | C27: 15-06-2018 | D27: Southern Yellow Pine | E27: 3.81 Centimeter | F27: 18.415 Centimeter | G27: 3.81x18.415 | H27: 3.658 Meter | I27: 12.832474335 Kg | J27: 658.21 Hz | K27: 11594.35 MPa | L27: No. 2 | M27: 0 | N27: 0 | O27: 0
A28: T - 21 | B28: Soundwave | C28: 15-06-2018 | D28: Southern Yellow Pine | E28: 3.81 Centimeter | F28: 18.415 Centimeter | G28: 3.81x18.415 | H28: 3.658 Meter | I28: 12.832474335 Kg | J28: 639.13 Hz | K28: 10931.90 MPa | L28: No. 2 | M28: 0 | N28: 0 | O28: 0
A29: T - 22 | B29: Soundwave | C29: 15-06-2018 | D29: Southern Yellow Pine | E29: 3.81 Centimeter | F29: 18.415 Centimeter | G29: 3.81x18.415 | H29: 3.658 Meter | I29: 12.832474335 Kg | J29: 711.29 Hz | K29: 13539.75 MPa | L29: No. 1 | M29: 0 | N29: 0 | O29: 0
A30: T - 23 | B30: Soundwave | C30: 15-06-2018 | D30: Southern Yellow Pine | E30: 1.5 Inch | F30: 7.25 Inch | G30: 1.5x7.25 | H30: 12.001 Feet | I30: 28.290033 lb | J30: 668.18 Hz | K30: 1.73 Mpsi | L30: No. 2 | M30: 0 | N30: 0 | O30: 0
A31: T - 24 | B31: Soundwave | C31: 15-06-2018 | D31: Southern Yellow Pine | E31: 1.5 Inch | F31: 7.25 Inch | G31: 1.5x7.25 | H31: 12.001 Feet | I31: 28.290033 lb | J31: 639.13 Hz | K31: 1.58 Mpsi | L31: No. 2 | M31: 0 | N31: 0 | O31: 0
A32: T - 25 | B32: Soundwave | C32: 15-06-2018 | D32: Southern Yellow Pine | E32: 1.5 Inch | F32: 7.25 Inch | G32: 1.5x7.25 | H32: 12.001 Feet | I32: 28.290033 lb | J32: 722.95 Hz | K32: 2.03 Mpsi | L32: No. 1 | M32: 0 | N32: 0 | O32: 0
A33: T - 26 | B33: Soundwave | C33: 15-06-2018 | D33: Southern Yellow Pine | E33: 1.5 Inch | F33: 7.25 Inch | G33: 1.5x7.25 | H33: 12.001 Feet | I33: 28.290033 lb | J33: 668.18 Hz | K33: 1.73 Mpsi | L33: No. 2 | M33: 0 | N33: 0 | O33: 0
A34: T - 27 | B34: Soundwave | C34: 15-06-2018 | D34: Southern Yellow Pine | E34: 1.5 Inch | F34: 7.25 Inch | G34: 1.5x7.25 | H34: 12.001 Feet | I34: 28.290033 lb | J34: 648.53 Hz | K34: 1.63 Mpsi | L34: No. 2 | M34: 0 | N34: 0 | O34: 0
A35: T - 28 | B35: Soundwave | C35: 15-06-2018 | D35: Southern Yellow Pine | E35: 1.5 Inch | F35: 7.25 Inch | G35: 1.5x7.25 | H35: 12.001 Feet | I35: 28.290033 lb | J35: 722.95 Hz | K35: 2.03 Mpsi | L35: No. 1 | M35: 0 | N35: 0 | O35: 0
A36: x | B36: Soundwave | C36: 15-06-2018 | D36: Southern Yellow Pine | E36: 1.5 Inch | F36: 7.25 Inch | G36: 1.5x7.25 | H36: 12 Feet | I36: 28.287676 lb | J36: 668.18 Hz | K36: 1.73 Mpsi | L36: No. 2 | M36: 0 | N36: 0 | O36: 0
A37: Y | B37: Vibration | C37: 15-06-2018 | D37: Douglas-fir | E37: 1.5 Inch | F37: 7.2 Inch | G37: 1.5x7.2 | H37: 12 Feet | I37: 29.77813 lb | J37: 6.45 Hz | K37: 1.92 Mpsi | L37: No. 1 | M37: 0 | N37: 0 | O37: 0
A38: Y - 1 | B38: Vibration | C38: 15-06-2018 | D38: Douglas-fir | E38: 1.5 Inch | F38: 7.2 Inch | G38: 1.5x7.2 | H38: 12 Feet | I38: 29.77813 lb | J38: 6.05 Hz | K38: 1.69 Mpsi | L38: No. 2 | M38: 0 | N38: 0 | O38: 0
A39: Y - 2 | B39: Vibration | C39: 15-06-2018 | D39: Douglas-fir | E39: 1.5 Inch | F39: 7.2 Inch | G39: 1.5x7.2 | H39: 12 Feet | I39: 29.77813 lb | J39: 6.64 Hz | K39: 2.04 Mpsi | L39: No. 1 | M39: 0 | N39: 0 | O39: 0
A40: Y - 3 | B40: Soundwave | C40: 15-06-2018 | D40: Douglas-fir | E40: 1.5 Inch | F40: 7.2 Inch | G40: 1.5x7.2 | H40: 12 Feet | I40: 29.77813 lb | J40: 658.21 Hz | K40: 1.78 Mpsi | L40: No. 2 | M40: 0 | N40: 0 | O40: 0
A41: Y - 4 | B41: Soundwave | C41: 15-06-2018 | D41: Douglas-fir | E41: 1.5 Inch | F41: 7.2 Inch | G41: 1.5x7.2 | H41: 12 Feet | I41: 29.77813 lb | J41: 639.13 Hz | K41: 1.68 Mpsi | L41: No. 2 | M41: 0 | N41: 0 | O41: 0
A42: Y - 5 | B42: Soundwave | C42: 15-06-2018 | D42: Douglas-fir | E42: 1.5 Inch | F42: 7.2 Inch | G42: 1.5x7.2 | H42: 12 Feet | I42: 29.77813 lb | J42: 735.00 Hz | K42: 2.22 Mpsi | L42: No. 1 | M42: 0 | N42: 0 | O42: 0
A43: Y - 6 | B43: Vibration | C43: 15-06-2018 | D43: SPF (spruce pine fir) | E43: 3.81 Centimeter | F43: 18.288 Centimeter | G43: 3.81x18.288 | H43: 3.658 Meter | I43: 11.4695770608 Kg | J43: 6.45 Hz | K43: 11264.27 MPa | L43: No. 2 | M43: 0 | N43: 0 | O43: 0
A44: Y - 7 | B44: Vibration | C44: 15-06-2018 | D44: SPF (spruce pine fir) | E44: 3.81 Centimeter | F44: 18.288 Centimeter | G44: 3.81x18.288 | H44: 3.658 Meter | I44: 11.4695770608 Kg | J44: 6.05 Hz | K44: 9910.47 MPa | L44: No. 2 | M44: 0 | N44: 0 | O44: 0
A45: Y - 8 | B45: Vibration | C45: 15-06-2018 | D45: SPF (spruce pine fir) | E45: 3.81 Centimeter | F45: 18.288 Centimeter | G45: 3.81x18.288 | H45: 3.658 Meter | I45: 11.4695770608 Kg | J45: 6.64 Hz | K45: 11937.67 MPa | L45: No. 2 | M45: 0 | N45: 0 | O45: 0
A46: Y - 9 | B46: Vibration | C46: 15-06-2018 | D46: SPF (spruce pine fir) | E46: 1.5 Inch | F46: 7.2 Inch | G46: 1.5x7.2 | H46: 12.001 Feet | I46: 25.285429 lb | J46: 6.45 Hz | K46: 1.63 Mpsi | L46: No. 1 | M46: 0 | N46: 0 | O46: 0
A47: Y - 10 | B47: Vibration | C47: 15-06-2018 | D47: SPF (spruce pine fir) | E47: 1.5 Inch | F47: 7.2 Inch | G47: 1.5x7.2 | H47: 12.001 Feet | I47: 25.285429 lb | J47: 6.05 Hz | K47: 1.44 Mpsi | L47: No. 1 | M47: 0 | N47: 0 | O47: 0
A48: Y - 11 | B48: Vibration | C48: 15-06-2018 | D48: SPF (spruce pine fir) | E48: 1.5 Inch | F48: 7.2 Inch | G48: 1.5x7.2 | H48: 12.001 Feet | I48: 25.285429 lb | J48: 6.64 Hz | K48: 1.73 Mpsi | L48: No. 1 | M48: 0 | N48: 0 | O48: 0
A49: Y - 12 | B49: Soundwave | C49: 15-06-2018 | D49: SPF (spruce pine fir) | E49: 1.5 Inch | F49: 7.2 Inch | G49: 1.5x7.2 | H49: 12.001 Feet | I49: 25.285429 lb | J49: 648.53 Hz | K49: 1.47 Mpsi | L49: No. 1 | M49: 0 | N49: 0 | O49: 0
A50: Y - 13 | B50: Soundwave | C50: 15-06-2018 | D50: SPF (spruce pine fir) | E50: 1.5 Inch | F50: 7.2 Inch | G50: 1.5x7.2 | H50: 12.001 Feet | I50: 25.285429 lb | J50: 639.13 Hz | K50: 1.43 Mpsi | L50: No. 1 | M50: 0 | N50: 0 | O50: 0
A51: Y - 14 | B51: Soundwave | C51: 15-06-2018 | D51: SPF (spruce pine fir) | E51: 1.5 Inch | F51: 7.2 Inch | G51: 1.5x7.2 | H51: 12.001 Feet | I51: 25.285429 lb | J51: 722.95 Hz | K51: 1.82 Mpsi | L51: No. 1 | M51: 0 | N51: 0 | O51: 0

Sheet Results Imperial
A1: Specimen | B1: Test | C1: Date | D1: Species | E1: Tested | F1: Cross | G1: Equivalent | H1: Depth | I1: Width | J1: Length | K1: Weight | L1: Frequency | M1: Stiffness | N1: New Weight | O1: Stiffness-psi | P1: Current | Q1: Final | R1: Stiffness-psi
A2: No. | B2: Method | E2: Measure | F2: Section | G2: To | H2: Inches | I2: Inches | J2: Feet | K2: lbs | M2: psi | N2: lbs | O2: Wgt Adjusted | P2: MC% | Q2: MC% | R2: MC Adjusted
A3: a | B3: Vibration | C3: 2018-12-06 | D3: SYP | E3: Imperial | F3: 2x8 | G3: No. 3 | H3: 2 | I3: 8 | J3: 12 | K3: 41.61865 | L3: 6.05 | M3: 0.8981835041 | N3: 41.61865 | O3: 0.8981835041 | P3: 0 | Q3: 15 | R3: 0.8981835041
A4: a - 1 | B4: Vibration | C4: 2018-12-06 | D4: SYP | E4: Imperial | F4: 2x8 | G4: No. 3 | H4: 2 | I4: 8 | J4: 12 | K4: 41.61865 | L4: 6.25 | M4: 0.9585490917 | N4: 41.61865 | O4: 0.9585490917 | P4: 0 | Q4: 15 | R4: 0.9585490917
A5: b | B5: Vibration | C5: 2018-12-06 | D5: SYP | E5: SI | F5: 5.08x20.32 | G5: No. 3 | H5: 2.00000108 | I5: 8.00000432 | J5: 12.00131882 | K5: 41.62314235 | L5: 7.23 | M5: 1.2832759 | N5: 41.62314235 | O5: 1.2832759 | P5: 0 | Q5: 15 | R5: 1.2832759
A6: b - 1 | B6: Vibration | C6: 2018-12-06 | D6: SYP | E6: SI | F6: 5.08x20.32 | G6: No. 3 | H6: 2.00000108 | I6: 8.00000432 | J6: 12.00131882 | K6: 41.62314235 | L6: 5.86 | M6: 0.8430215483 | N6: 41.62314235 | O6: 0.8430215483 | P6: 0 | Q6: 15 | R6: 0.8430215483
A7: T | B7: Vibration | C7: 15-06-2018 | D7: SYP | E7: Imperial | F7: 2x8 | G7: No. 1 | H7: 1.5 | I7: 7.25 | J7: 12 | K7: 28.287676 | L7: 6.45 | M7: 1.814893834 | N7: 28.287676 | O7: 1.814893834 | P7: 0 | Q7: 15 | R7: 1.814893834
A8: T - 1 | B8: Vibration | C8: 15-06-2018 | D8: SYP | E8: Imperial | F8: 2x8 | G8: No. 2 | H8: 1.5 | I8: 7.25 | J8: 12 | K8: 28.287676 | L8: 6.05 | M8: 1.596770664 | N8: 28.287676 | O8: 1.596770664 | P8: 0 | Q8: 15 | R8: 1.596770664
A9: T - 2 | B9: Vibration | C9: 15-06-2018 | D9: SYP | E9: Imperial | F9: 2x8 | G9: No. 1 | H9: 1.5 | I9: 7.25 | J9: 12 | K9: 28.287676 | L9: 6.64 | M9: 1.923392661 | N9: 28.287676 | O9: 1.923392661 | P9: 0 | Q9: 15 | R9: 1.923392661
A10: T - 3 | B10: Vibration | C10: 15-06-2018 | D10: SYP | E10: Imperial | F10: 2x8 | G10: No. 1 | H10: 1.5 | I10: 7.25 | J10: 12 | K10: 28.287676 | L10: 6.45 | M10: 1.814893834 | N10: 28.287676 | O10: 1.814893834 | P10: 0 | Q10: 15 | R10: 1.814893834
A11: T - 4 | B11: Vibration | C11: 15-06-2018 | D11: SYP | E11: Imperial | F11: 2x8 | G11: No. 2 | H11: 1.5 | I11: 7.25 | J11: 12 | K11: 28.287676 | L11: 6.05 | M11: 1.596770664 | N11: 28.287676 | O11: 1.596770664 | P11: 0 | Q11: 15 | R11: 1.596770664
A12: T - 5 | B12: Vibration | C12: 15-06-2018 | D12: SYP | E12: Imperial | F12: 2x8 | G12: No. 1 | H12: 1.5 | I12: 7.25 | J12: 12 | K12: 28.287676 | L12: 6.64 | M12: 1.923392661 | N12: 28.287676 | O12: 1.923392661 | P12: 0 | Q12: 15 | R12: 1.923392661
A13: T - 6 | B13: Vibration | C13: 15-06-2018 | D13: SYP | E13: SI | F13: 3.81x18.415 | G13: No. 1 | H13: 1.50000081 | I13: 7.250003915 | J13: 12.00131882 | K13: 28.29072957 | L13: 6.45 | M13: 1.815684333 | N13: 28.29072957 | O13: 1.815684333 | P13: 0 | Q13: 15 | R13: 1.815684333
A14: T - 7 | B14: Vibration | C14: 15-06-2018 | D14: SYP | E14: SI | F14: 3.81x18.415 | G14: No. 2 | H14: 1.50000081 | I14: 7.250003915 | J14: 12.00131882 | K14: 28.29072957 | L14: 6.05 | M14: 1.597466157 | N14: 28.29072957 | O14: 1.597466157 | P14: 0 | Q14: 15 | R14: 1.597466157
A15: T - 8 | B15: Vibration | C15: 15-06-2018 | D15: SYP | E15: SI | F15: 3.81x18.415 | G15: No. 1 | H15: 1.50000081 | I15: 7.250003915 | J15: 12.00131882 | K15: 28.29072957 | L15: 6.64 | M15: 1.924230418 | N15: 28.29072957 | O15: 1.924230418 | P15: 0 | Q15: 15 | R15: 1.924230418
A16: T - 9 | B16: Vibration | C16: 15-06-2018 | D16: SYP | E16: SI | F16: 3.81x18.415 | G16: No. 1 | H16: 1.50000081 | I16: 7.250003915 | J16: 12.00131882 | K16: 28.29072957 | L16: 6.45 | M16: 1.815684333 | N16: 28.29072957 | O16: 1.815684333 | P16: 0 | Q16: 15 | R16: 1.815684333
A17: T - 10 | B17: Vibration | C17: 15-06-2018 | D17: SYP | E17: SI | F17: 3.81x18.415 | G17: No. 2 | H17: 1.50000081 | I17: 7.250003915 | J17: 12.00131882 | K17: 28.29072957 | L17: 6.05 | M17: 1.597466157 | N17: 28.29072957 | O17: 1.597466157 | P17: 0 | Q17: 15 | R17: 1.597466157
A18: T - 11 | B18: Vibration | C18: 15-06-2018 | D18: SYP | E18: SI | F18: 3.81x18.415 | G18: No. 1 | H18: 1.50000081 | I18: 7.250003915 | J18: 12.00131882 | K18: 28.29072957 | L18: 6.64 | M18: 1.924230418 | N18: 28.29072957 | O18: 1.924230418 | P18: 0 | Q18: 15 | R18: 1.924230418
A19: T - 12 | B19: Soundwave | C19: 15-06-2018 | D19: SYP | E19: Imperial | F19: 2x8 | G19: No. 2 | H19: 1.5 | I19: 7.25 | J19: 12.001 | K19: 28.290033 | L19: 678.46 | M19: 1.786997944 | N19: 28.290033 | O19: 1.786997944 | P19: 0 | Q19: 15 | R19: 1.786997944
A20: T - 13 | B20: Soundwave | C20: 15-06-2018 | D20: SYP | E20: Imperial | F20: 2x8 | G20: No. 2 | H20: 1.5 | I20: 7.25 | J20: 12.001 | K20: 28.290033 | L20: 658.21 | M20: 1.681916802 | N20: 28.290033 | O20: 1.681916802 | P20: 0 | Q20: 15 | R20: 1.681916802
A21: T - 14 | B21: Soundwave | C21: 15-06-2018 | D21: SYP | E21: Imperial | F21: 2x8 | G21: No. 2 | H21: 1.5 | I21: 7.25 | J21: 12.001 | K21: 28.290033 | L21: 639.13 | M21: 1.585820265 | N21: 28.290033 | O21: 1.585820265 | P21: 0 | Q21: 15 | R21: 1.585820265
A22: T - 15 | B22: Soundwave | C22: 15-06-2018 | D22: SYP | E22: Imperial | F22: 2x8 | G22: No. 1 | H22: 1.5 | I22: 7.25 | J22: 12.001 | K22: 28.290033 | L22: 722.95 | M22: 2.029046879 | N22: 28.290033 | O22: 2.029046879 | P22: 0 | Q22: 15 | R22: 2.029046879
A23: T - 16 | B23: Soundwave | C23: 15-06-2018 | D23: SYP | E23: Imperial | F23: 2x8 | G23: No. 2 | H23: 1.5 | I23: 7.25 | J23: 12.001 | K23: 28.290033 | L23: 678.46 | M23: 1.786997944 | N23: 28.290033 | O23: 1.786997944 | P23: 0 | Q23: 15 | R23: 1.786997944
A24: T - 17 | B24: Soundwave | C24: 15-06-2018 | D24: SYP | E24: Imperial | F24: 2x8 | G24: No. 2 | H24: 1.5 | I24: 7.25 | J24: 12.001 | K24: 28.290033 | L24: 648.53 | M24: 1.632810176 | N24: 28.290033 | O24: 1.632810176 | P24: 0 | Q24: 15 | R24: 1.632810176
A25: T - 18 | B25: Soundwave | C25: 15-06-2018 | D25: SYP | E25: Imperial | F25: 2x8 | G25: No. 1 | H25: 1.5 | I25: 7.25 | J25: 12.001 | K25: 28.290033 | L25: 722.95 | M25: 2.029046879 | N25: 28.290033 | O25: 2.029046879 | P25: 0 | Q25: 15 | R25: 2.029046879
A26: T - 19 | B26: Soundwave | C26: 15-06-2018 | D26: SYP | E26: SI | F26: 3.81x18.415 | G26: No. 2 | H26: 1.50000081 | I26: 7.250003915 | J26: 12.00131882 | K26: 28.29072957 | L26: 668.18 | M26: 1.733342009 | N26: 28.29072957 | O26: 1.733342009 | P26: 0 | Q26: 15 | R26: 1.733342009
A27: T - 20 | B27: Soundwave | C27: 15-06-2018 | D27: SYP | E27: SI | F27: 3.81x18.415 | G27: No. 2 | H27: 1.50000081 | I27: 7.250003915 | J27: 12.00131882 | K27: 28.29072957 | L27: 658.21 | M27: 1.682001081 | N27: 28.29072957 | O27: 1.682001081 | P27: 0 | Q27: 15 | R27: 1.682001081
A28: T - 21 | B28: Soundwave | C28: 15-06-2018 | D28: SYP | E28: SI | F28: 3.81x18.415 | G28: No. 2 | H28: 1.50000081 | I28: 7.250003915 | J28: 12.00131882 | K28: 28.29072957 | L28: 639.13 | M28: 1.585899729 | N28: 28.29072957 | O28: 1.585899729 | P28: 0 | Q28: 15 | R28: 1.585899729
A29: T - 22 | B29: Soundwave | C29: 15-06-2018 | D29: SYP | E29: SI | F29: 3.81x18.415 | G29: No. 1 | H29: 1.50000081 | I29: 7.250003915 | J29: 12.00131882 | K29: 28.29072957 | L29: 711.29 | M29: 1.964222694 | N29: 28.29072957 | O29: 1.964222694 | P29: 0 | Q29: 15 | R29: 1.964222694
A30: T - 23 | B30: Soundwave | C30: 15-06-2018 | D30: SYP | E30: Imperial | F30: 2x8 | G30: No. 2 | H30: 1.5 | I30: 7.25 | J30: 12.001 | K30: 28.290033 | L30: 668.18 | M30: 1.733255158 | N30: 28.290033 | O30: 1.733255158 | P30: 0 | Q30: 15 | R30: 1.733255158
A31: T - 24 | B31: Soundwave | C31: 15-06-2018 | D31: SYP | E31: Imperial | F31: 2x8 | G31: No. 2 | H31: 1.5 | I31: 7.25 | J31: 12.001 | K31: 28.290033 | L31: 639.13 | M31: 1.585820265 | N31: 28.290033 | O31: 1.585820265 | P31: 0 | Q31: 15 | R31: 1.585820265
A32: T - 25 | B32: Soundwave | C32: 15-06-2018 | D32: SYP | E32: Imperial | F32: 2x8 | G32: No. 1 | H32: 1.5 | I32: 7.25 | J32: 12.001 | K32: 28.290033 | L32: 722.95 | M32: 2.029046879 | N32: 28.290033 | O32: 2.029046879 | P32: 0 | Q32: 15 | R32: 2.029046879
A33: T - 26 | B33: Soundwave | C33: 15-06-2018 | D33: SYP | E33: Imperial | F33: 2x8 | G33: No. 2 | H33: 1.5 | I33: 7.25 | J33: 12.001 | K33: 28.290033 | L33: 668.18 | M33: 1.733255158 | N33: 28.290033 | O33: 1.733255158 | P33: 0 | Q33: 15 | R33: 1.733255158
A34: T - 27 | B34: Soundwave | C34: 15-06-2018 | D34: SYP | E34: Imperial | F34: 2x8 | G34: No. 2 | H34: 1.5 | I34: 7.25 | J34: 12.001 | K34: 28.290033 | L34: 648.53 | M34: 1.632810176 | N34: 28.290033 | O34: 1.632810176 | P34: 0 | Q34: 15 | R34: 1.632810176
A35: T - 28 | B35: Soundwave | C35: 15-06-2018 | D35: SYP | E35: Imperial | F35: 2x8 | G35: No. 1 | H35: 1.5 | I35: 7.25 | J35: 12.001 | K35: 28.290033 | L35: 722.95 | M35: 2.029046879 | N35: 28.290033 | O35: 2.029046879 | P35: 0 | Q35: 15 | R35: 2.029046879
A36: x | B36: Soundwave | C36: 15-06-2018 | D36: SYP | E36: Imperial | F36: 2x8 | G36: No. 2 | H36: 1.5 | I36: 7.25 | J36: 12 | K36: 28.287676 | L36: 668.18 | M36: 1.732966337 | N36: 28.287676 | O36: 1.732966337 | P36: 0 | Q36: 15 | R36: 1.732966337
A37: Y | B37: Vibration | C37: 15-06-2018 | D37: DF | E37: Imperial | F37: 1.5x7.2 | G37: No. 1 | H37: 1.5 | I37: 7.2 | J37: 12 | K37: 29.77813 | L37: 6.45 | M37: 1.923786566 | N37: 29.77813 | O37: 1.923786566 | P37: 0 | Q37: 15 | R37: 1.923786566
A38: Y - 1 | B38: Vibration | C38: 15-06-2018 | D38: DF | E38: Imperial | F38: 1.5x7.2 | G38: No. 2 | H38: 1.5 | I38: 7.2 | J38: 12 | K38: 29.77813 | L38: 6.05 | M38: 1.692576114 | N38: 29.77813 | O38: 1.692576114 | P38: 0 | Q38: 15 | R38: 1.692576114
A39: Y - 2 | B39: Vibration | C39: 15-06-2018 | D39: DF | E39: Imperial | F39: 1.5x7.2 | G39: No. 1 | H39: 1.5 | I39: 7.2 | J39: 12 | K39: 29.77813 | L39: 6.64 | M39: 2.038795269 | N39: 29.77813 | O39: 2.038795269 | P39: 0 | Q39: 15 | R39: 2.038795269
A40: Y - 3 | B40: Soundwave | C40: 15-06-2018 | D40: DF | E40: Imperial | F40: 1.5x7.2 | G40: No. 2 | H40: 1.5 | I40: 7.2 | J40: 12 | K40: 29.77813 | L40: 658.21 | M40: 1.782533896 | N40: 29.77813 | O40: 1.782533896 | P40: 0 | Q40: 15 | R40: 1.782533896
A41: Y - 4 | B41: Soundwave | C41: 15-06-2018 | D41: DF | E41: Imperial | F41: 1.5x7.2 | G41: No. 2 | H41: 1.5 | I41: 7.2 | J41: 12 | K41: 29.77813 | L41: 639.13 | M41: 1.680688589 | N41: 29.77813 | O41: 1.680688589 | P41: 0 | Q41: 15 | R41: 1.680688589
A42: Y - 5 | B42: Soundwave | C42: 15-06-2018 | D42: DF | E42: Imperial | F42: 1.5x7.2 | G42: No. 1 | H42: 1.5 | I42: 7.2 | J42: 12 | K42: 29.77813 | L42: 735 | M42: 2.222713683 | N42: 29.77813 | O42: 2.222713683 | P42: 0 | Q42: 15 | R42: 2.222713683
A43: Y - 6 | B43: Vibration | C43: 15-06-2018 | D43: SPF | E43: SI | F43: 3.81x18.288 | G43: No. 2 | H43: 1.50000081 | I43: 7.200003888 | J43: 12.00131882 | K43: 25.28605898 | L43: 6.45 | M43: 1.6341159 | N43: 25.28605898 | O43: 1.6341159 | P43: 0 | Q43: 15 | R43: 1.6341159
A44: Y - 7 | B44: Vibration | C44: 15-06-2018 | D44: SPF | E44: SI | F44: 3.81x18.288 | G44: No. 2 | H44: 1.50000081 | I44: 7.200003888 | J44: 12.00131882 | K44: 25.28605898 | L44: 6.05 | M44: 1.437719541 | N44: 25.28605898 | O44: 1.437719541 | P44: 0 | Q44: 15 | R44: 1.437719541
A45: Y - 8 | B45: Vibration | C45: 15-06-2018 | D45: SPF | E45: SI | F45: 3.81x18.288 | G45: No. 2 | H45: 1.50000081 | I45: 7.200003888 | J45: 12.00131882 | K45: 25.28605898 | L45: 6.64 | M45: 1.731807376 | N45: 25.28605898 | O45: 1.731807376 | P45: 0 | Q45: 15 | R45: 1.731807376
A46: Y - 9 | B46: Vibration | C46: 15-06-2018 | D46: SPF | E46: Imperial | F46: 1.5x7.2 | G46: No. 1 | H46: 1.5 | I46: 7.2 | J46: 12.001 | K46: 25.285429 | L46: 6.45 | M46: 1.633948491 | N46: 25.285429 | O46: 1.633948491 | P46: 0 | Q46: 15 | R46: 1.633948491
A47: Y - 10 | B47: Vibration | C47: 15-06-2018 | D47: SPF | E47: Imperial | F47: 1.5x7.2 | G47: No. 1 | H47: 1.5 | I47: 7.2 | J47: 12.001 | K47: 25.285429 | L47: 6.05 | M47: 1.437572253 | N47: 25.285429 | O47: 1.437572253 | P47: 0 | Q47: 15 | R47: 1.437572253
A48: Y - 11 | B48: Vibration | C48: 15-06-2018 | D48: SPF | E48: Imperial | F48: 1.5x7.2 | G48: No. 1 | H48: 1.5 | I48: 7.2 | J48: 12.001 | K48: 25.285429 | L48: 6.64 | M48: 1.73162996 | N48: 25.285429 | O48: 1.73162996 | P48: 0 | Q48: 15 | R48: 1.73162996
A49: Y - 12 | B49: Soundwave | C49: 15-06-2018 | D49: SPF | E49: Imperial | F49: 1.5x7.2 | G49: No. 1 | H49: 1.5 | I49: 7.2 | J49: 12.001 | K49: 25.285429 | L49: 648.53 | M49: 1.469528729 | N49: 25.285429 | O49: 1.469528729 | P49: 0 | Q49: 15 | R49: 1.469528729
A50: Y - 13 | B50: Soundwave | C50: 15-06-2018 | D50: SPF | E50: Imperial | F50: 1.5x7.2 | G50: No. 1 | H50: 1.5 | I50: 7.2 | J50: 12.001 | K50: 25.285429 | L50: 639.13 | M50: 1.427237822 | N50: 25.285429 | O50: 1.427237822 | P50: 0 | Q50: 15 | R50: 1.427237822
A51: Y - 14 | B51: Soundwave | C51: 15-06-2018 | D51: SPF | E51: Imperial | F51: 1.5x7.2 | G51: No. 1 | H51: 1.5 | I51: 7.2 | J51: 12.001 | K51: 25.285429 | L51: 722.95 | M51: 1.826141657 | N51: 25.285429 | O51: 1.826141657 | P51: 0 | Q51: 15 | R51: 1.826141657

Sheet Results SI
A1: Specimen | B1: Test | C1: Date | D1: Species | E1: Cross | F1: Equivalent | G1: Tested | H1: Depth | I1: Width | J1: Length | K1: Weight | L1: Frequency | M1: Stiffness | N1: New Weight | O1: Stiffness-Mpa | P1: Current | Q1: Final | R1: Stiffness-Mpa
A2: No. | B2: Method | E2: Section | F2: To | G2: Measure | H2: CM | I2: CM | J2: Meters | K2: Kg | M2: Mpa | N2: Kg | O2: Wgt Adjusted | P2: MC% | Q2: MC% | R2: MC Adjusted
A3: a | B3: Vibration | C3: 43440 | D3: SYP | E3: 2x8 | F3: No. 3 | G3: Imperial | H3: 5.080002743 | I3: 20.32001097 | J3: 3.6576 | K3: 18.87788669 | L3: 6.05 | M3: 6192.759697 | N3: 18.87788669 | O3: 6192.759697 | P3: 0 | Q3: 15 | R3: 6192.759697
A4: a - 1 | B4: Vibration | C4: 43440 | D4: SYP | E4: 2x8 | F4: No. 3 | G4: Imperial | H4: 5.080002743 | I4: 20.32001097 | J4: 3.6576 | K4: 18.87788669 | L4: 6.25 | M4: 6608.965935 | N4: 18.87788669 | O4: 6608.965935 | P4: 0 | Q4: 15 | R4: 6608.965935
A5: b | B5: Vibration | C5: 43440 | D5: SYP | E5: 5.08x20.32 | F5: No. 3 | G5: SI | H5: 5.080005486 | I5: 20.32002195 | J5: 3.658001975 | K5: 18.87992439 | L5: 7.23 | M5: 8847.879344 | N5: 18.87992439 | O5: 8847.879344 | P5: 0 | Q5: 15 | R5: 8847.879344
A6: b - 1 | B6: Vibration | C6: 43440 | D6: SYP | E6: 5.08x20.32 | F6: No. 3 | G6: SI | H6: 5.080005486 | I6: 20.32002195 | J6: 3.658001975 | K6: 18.87992439 | L6: 5.86 | M6: 5812.431251 | N6: 18.87992439 | O6: 5812.431251 | P6: 0 | Q6: 15 | R6: 5812.431251
A7: T | B7: Vibration | C7: 15-06-2018 | D7: SYP | E7: 2x8 | F7: No. 1 | G7: Imperial | H7: 3.810002057 | I7: 18.41500994 | J7: 3.6576 | K7: 12.83106353 | L7: 6.45 | M7: 12513.25741 | N7: 12.83106353 | O7: 12513.25741 | P7: 0 | Q7: 15 | R7: 12513.25741
A8: T - 1 | B8: Vibration | C8: 15-06-2018 | D8: SYP | E8: 2x8 | F8: No. 2 | G8: Imperial | H8: 3.810002057 | I8: 18.41500994 | J8: 3.6576 | K8: 12.83106353 | L8: 6.05 | M8: 11009.3505 | N8: 12.83106353 | O8: 11009.3505 | P8: 0 | Q8: 15 | R8: 11009.3505
A9: T - 2 | B9: Vibration | C9: 15-06-2018 | D9: SYP | E9: 2x8 | F9: No. 1 | G9: Imperial | H9: 3.810002057 | I9: 18.41500994 | J9: 3.6576 | K9: 12.83106353 | L9: 6.64 | M9: 13261.33078 | N9: 12.83106353 | O9: 13261.33078 | P9: 0 | Q9: 15 | R9: 13261.33078
A10: T - 3 | B10: Vibration | C10: 15-06-2018 | D10: SYP | E10: 2x8 | F10: No. 1 | G10: Imperial | H10: 3.810002057 | I10: 18.41500994 | J10: 3.6576 | K10: 12.83106353 | L10: 6.45 | M10: 12513.25741 | N10: 12.83106353 | O10: 12513.25741 | P10: 0 | Q10: 15 | R10: 12513.25741
A11: T - 4 | B11: Vibration | C11: 15-06-2018 | D11: SYP | E11: 2x8 | F11: No. 2 | G11: Imperial | H11: 3.810002057 | I11: 18.41500994 | J11: 3.6576 | K11: 12.83106353 | L11: 6.05 | M11: 11009.3505 | N11: 12.83106353 | O11: 11009.3505 | P11: 0 | Q11: 15 | R11: 11009.3505
A12: T - 5 | B12: Vibration | C12: 15-06-2018 | D12: SYP | E12: 2x8 | F12: No. 1 | G12: Imperial | H12: 3.810002057 | I12: 18.41500994 | J12: 3.6576 | K12: 12.83106353 | L12: 6.64 | M12: 13261.33078 | N12: 12.83106353 | O12: 13261.33078 | P12: 0 | Q12: 15 | R12: 13261.33078
A13: T - 6 | B13: Vibration | C13: 15-06-2018 | D13: SYP | E13: 3.81x18.415 | F13: No. 1 | G13: SI | H13: 3.810004115 | I13: 18.41501989 | J13: 3.658001975 | K13: 12.83244861 | L13: 6.45 | M13: 12518.70771 | N13: 12.83244861 | O13: 12518.70771 | P13: 0 | Q13: 15 | R13: 12518.70771
A14: T - 7 | B14: Vibration | C14: 15-06-2018 | D14: SYP | E14: 3.81x18.415 | F14: No. 2 | G14: SI | H14: 3.810004115 | I14: 18.41501989 | J14: 3.658001975 | K14: 12.83244861 | L14: 6.05 | M14: 11014.14576 | N14: 12.83244861 | O14: 11014.14576 | P14: 0 | Q14: 15 | R14: 11014.14576
A15: T - 8 | B15: Vibration | C15: 15-06-2018 | D15: SYP | E15: 3.81x18.415 | F15: No. 1 | G15: SI | H15: 3.810004115 | I15: 18.41501989 | J15: 3.658001975 | K15: 12.83244861 | L15: 6.64 | M15: 13267.10692 | N15: 12.83244861 | O15: 13267.10692 | P15: 0 | Q15: 15 | R15: 13267.10692
A16: T - 9 | B16: Vibration | C16: 15-06-2018 | D16: SYP | E16: 3.81x18.415 | F16: No. 1 | G16: SI | H16: 3.810004115 | I16: 18.41501989 | J16: 3.658001975 | K16: 12.83244861 | L16: 6.45 | M16: 12518.70771 | N16: 12.83244861 | O16: 12518.70771 | P16: 0 | Q16: 15 | R16: 12518.70771
A17: T - 10 | B17: Vibration | C17: 15-06-2018 | D17: SYP | E17: 3.81x18.415 | F17: No. 2 | G17: SI | H17: 3.810004115 | I17: 18.41501989 | J17: 3.658001975 | K17: 12.83244861 | L17: 6.05 | M17: 11014.14576 | N17: 12.83244861 | O17: 11014.14576 | P17: 0 | Q17: 15 | R17: 11014.14576
A18: T - 11 | B18: Vibration | C18: 15-06-2018 | D18: SYP | E18: 3.81x18.415 | F18: No. 1 | G18: SI | H18: 3.810004115 | I18: 18.41501989 | J18: 3.658001975 | K18: 12.83244861 | L18: 6.64 | M18: 13267.10692 | N18: 12.83244861 | O18: 13267.10692 | P18: 0 | Q18: 15 | R18: 13267.10692
A19: T - 12 | B19: Soundwave | C19: 15-06-2018 | D19: SYP | E19: 2x8 | F19: No. 2 | G19: Imperial | H19: 3.810002057 | I19: 18.41500994 | J19: 3.6579048 | K19: 12.83213265 | L19: 678.46 | M19: 12320.92195 | N19: 12.83213265 | O19: 12320.92195 | P19: 0 | Q19: 15 | R19: 12320.92195
A20: T - 13 | B20: Soundwave | C20: 15-06-2018 | D20: SYP | E20: 2x8 | F20: No. 2 | G20: Imperial | H20: 3.810002057 | I20: 18.41500994 | J20: 3.6579048 | K20: 12.83213265 | L20: 658.21 | M20: 11596.41269 | N20: 12.83213265 | O20: 11596.41269 | P20: 0 | Q20: 15 | R20: 11596.41269
A21: T - 14 | B21: Soundwave | C21: 15-06-2018 | D21: SYP | E21: 2x8 | F21: No. 2 | G21: Imperial | H21: 3.810002057 | I21: 18.41500994 | J21: 3.6579048 | K21: 12.83213265 | L21: 639.13 | M21: 10933.85013 | N21: 12.83213265 | O21: 10933.85013 | P21: 0 | Q21: 15 | R21: 10933.85013
A22: T - 15 | B22: Soundwave | C22: 15-06-2018 | D22: SYP | E22: 2x8 | F22: No. 1 | G22: Imperial | H22: 3.810002057 | I22: 18.41500994 | J22: 3.6579048 | K22: 12.83213265 | L22: 722.95 | M22: 13989.79126 | N22: 12.83213265 | O22: 13989.79126 | P22: 0 | Q22: 15 | R22: 13989.79126
A23: T - 16 | B23: Soundwave | C23: 15-06-2018 | D23: SYP | E23: 2x8 | F23: No. 2 | G23: Imperial | H23: 3.810002057 | I23: 18.41500994 | J23: 3.6579048 | K23: 12.83213265 | L23: 678.46 | M23: 12320.92195 | N23: 12.83213265 | O23: 12320.92195 | P23: 0 | Q23: 15 | R23: 12320.92195
A24: T - 17 | B24: Soundwave | C24: 15-06-2018 | D24: SYP | E24: 2x8 | F24: No. 2 | G24: Imperial | H24: 3.810002057 | I24: 18.41500994 | J24: 3.6579048 | K24: 12.83213265 | L24: 648.53 | M24: 11257.83429 | N24: 12.83213265 | O24: 11257.83429 | P24: 0 | Q24: 15 | R24: 11257.83429
A25: T - 18 | B25: Soundwave | C25: 15-06-2018 | D25: SYP | E25: 2x8 | F25: No. 1 | G25: Imperial | H25: 3.810002057 | I25: 18.41500994 | J25: 3.6579048 | K25: 12.83213265 | L25: 722.95 | M25: 13989.79126 | N25: 12.83213265 | O25: 13989.79126 | P25: 0 | Q25: 15 | R25: 13989.79126
A26: T - 19 | B26: Soundwave | C26: 15-06-2018 | D26: SYP | E26: 3.81x18.415 | F26: No. 2 | G26: SI | H26: 3.810004115 | I26: 18.41501989 | J26: 3.658001975 | K26: 12.83244861 | L26: 668.18 | M26: 11950.97715 | N26: 12.83244861 | O26: 11950.97715 | P26: 0 | Q26: 15 | R26: 11950.97715
A27: T - 20 | B27: Soundwave | C27: 15-06-2018 | D27: SYP | E27: 3.81x18.415 | F27: No. 2 | G27: SI | H27: 3.810004115 | I27: 18.41501989 | J27: 3.658001975 | K27: 12.83244861 | L27: 658.21 | M27: 11596.99377 | N27: 12.83244861 | O27: 11596.99377 | P27: 0 | Q27: 15 | R27: 11596.99377
A28: T - 21 | B28: Soundwave | C28: 15-06-2018 | D28: SYP | E28: 3.81x18.415 | F28: No. 2 | G28: SI | H28: 3.810004115 | I28: 18.41501989 | J28: 3.658001975 | K28: 12.83244861 | L28: 639.13 | M28: 10934.39802 | N28: 12.83244861 | O28: 10934.39802 | P28: 0 | Q28: 15 | R28: 10934.39802
A29: T - 22 | B29: Soundwave | C29: 15-06-2018 | D29: SYP | E29: 3.81x18.415 | F29: No. 1 | G29: SI | H29: 3.810004115 | I29: 18.41501989 | J29: 3.658001975 | K29: 12.83244861 | L29: 711.29 | M29: 13542.84406 | N29: 12.83244861 | O29: 13542.84406 | P29: 0 | Q29: 15 | R29: 13542.84406
A30: T - 23 | B30: Soundwave | C30: 15-06-2018 | D30: SYP | E30: 2x8 | F30: No. 2 | G30: Imperial | H30: 3.810002057 | I30: 18.41500994 | J30: 3.6579048 | K30: 12.83213265 | L30: 668.18 | M30: 11950.37833 | N30: 12.83213265 | O30: 11950.37833 | P30: 0 | Q30: 15 | R30: 11950.37833
A31: T - 24 | B31: Soundwave | C31: 15-06-2018 | D31: SYP | E31: 2x8 | F31: No. 2 | G31: Imperial | H31: 3.810002057 | I31: 18.41500994 | J31: 3.6579048 | K31: 12.83213265 | L31: 639.13 | M31: 10933.85013 | N31: 12.83213265 | O31: 10933.85013 | P31: 0 | Q31: 15 | R31: 10933.85013
A32: T - 25 | B32: Soundwave | C32: 15-06-2018 | D32: SYP | E32: 2x8 | F32: No. 1 | G32: Imperial | H32: 3.810002057 | I32: 18.41500994 | J32: 3.6579048 | K32: 12.83213265 | L32: 722.95 | M32: 13989.79126 | N32: 12.83213265 | O32: 13989.79126 | P32: 0 | Q32: 15 | R32: 13989.79126
A33: T - 26 | B33: Soundwave | C33: 15-06-2018 | D33: SYP | E33: 2x8 | F33: No. 2 | G33: Imperial | H33: 3.810002057 | I33: 18.41500994 | J33: 3.6579048 | K33: 12.83213265 | L33: 668.18 | M33: 11950.37833 | N33: 12.83213265 | O33: 11950.37833 | P33: 0 | Q33: 15 | R33: 11950.37833
A34: T - 27 | B34: Soundwave | C34: 15-06-2018 | D34: SYP | E34: 2x8 | F34: No. 2 | G34: Imperial | H34: 3.810002057 | I34: 18.41500994 | J34: 3.6579048 | K34: 12.83213265 | L34: 648.53 | M34: 11257.83429 | N34: 12.83213265 | O34: 11257.83429 | P34: 0 | Q34: 15 | R34: 11257.83429
A35: T - 28 | B35: Soundwave | C35: 15-06-2018 | D35: SYP | E35: 2x8 | F35: No. 1 | G35: Imperial | H35: 3.810002057 | I35: 18.41500994 | J35: 3.6579048 | K35: 12.83213265 | L35: 722.95 | M35: 13989.79126 | N35: 12.83213265 | O35: 13989.79126 | P35: 0 | Q35: 15 | R35: 13989.79126
A36: x | B36: Soundwave | C36: 15-06-2018 | D36: SYP | E36: 2x8 | F36: No. 2 | G36: Imperial | H36: 3.810002057 | I36: 18.41500994 | J36: 3.6576 | K36: 12.83106353 | L36: 668.18 | M36: 11948.38698 | N36: 12.83106353 | O36: 11948.38698 | P36: 0 | Q36: 15 | R36: 11948.38698
A37: Y | B37: Vibration | C37: 15-06-2018 | D37: DF | E37: 1.5x7.2 | F37: No. 1 | G37: Imperial | H37: 3.810002057 | I37: 18.28800988 | J37: 3.6576 | K37: 13.50712154 | L37: 6.45 | M37: 13264.04667 | N37: 13.50712154 | O37: 13264.04667 | P37: 0 | Q37: 15 | R37: 13264.04667
A38: Y - 1 | B38: Vibration | C38: 15-06-2018 | D38: DF | E38: 1.5x7.2 | F38: No. 2 | G38: Imperial | H38: 3.810002057 | I38: 18.28800988 | J38: 3.6576 | K38: 13.50712154 | L38: 6.05 | M38: 11669.90609 | N38: 13.50712154 | O38: 11669.90609 | P38: 0 | Q38: 15 | R38: 11669.90609
A39: Y - 2 | B39: Vibration | C39: 15-06-2018 | D39: DF | E39: 1.5x7.2 | F39: No. 1 | G39: Imperial | H39: 3.810002057 | I39: 18.28800988 | J39: 3.6576 | K39: 13.50712154 | L39: 6.64 | M39: 14057.00407 | N39: 13.50712154 | O39: 14057.00407 | P39: 0 | Q39: 15 | R39: 14057.00407
A40: Y - 3 | B40: Soundwave | C40: 15-06-2018 | D40: DF | E40: 1.5x7.2 | F40: No. 2 | G40: Imperial | H40: 3.810002057 | I40: 18.28800988 | J40: 3.6576 | K40: 13.50712154 | L40: 658.21 | M40: 12290.14341 | N40: 13.50712154 | O40: 12290.14341 | P40: 0 | Q40: 15 | R40: 12290.14341
A41: Y - 4 | B41: Soundwave | C41: 15-06-2018 | D41: DF | E41: 1.5x7.2 | F41: No. 2 | G41: Imperial | H41: 3.810002057 | I41: 18.28800988 | J41: 3.6576 | K41: 13.50712154 | L41: 639.13 | M41: 11587.94445 | N41: 13.50712154 | O41: 11587.94445 | P41: 0 | Q41: 15 | R41: 11587.94445
A42: Y - 5 | B42: Soundwave | C42: 15-06-2018 | D42: DF | E42: 1.5x7.2 | F42: No. 1 | G42: Imperial | H42: 3.810002057 | I42: 18.28800988 | J42: 3.6576 | K42: 13.50712154 | L42: 735 | M42: 15325.07739 | N42: 13.50712154 | O42: 15325.07739 | P42: 0 | Q42: 15 | R42: 15325.07739
A43: Y - 6 | B43: Vibration | C43: 15-06-2018 | D43: SPF | E43: 3.81x18.288 | F43: No. 2 | G43: SI | H43: 3.810004115 | I43: 18.28801975 | J43: 3.658001975 | K43: 11.46955406 | L43: 6.45 | M43: 11266.83694 | N43: 11.46955406 | O43: 11266.83694 | P43: 0 | Q43: 15 | R43: 11266.83694
A44: Y - 7 | B44: Vibration | C44: 15-06-2018 | D44: SPF | E44: 3.81x18.288 | F44: No. 2 | G44: SI | H44: 3.810004115 | I44: 18.28801975 | J44: 3.658001975 | K44: 11.46955406 | L44: 6.05 | M44: 9912.731184 | N44: 11.46955406 | O44: 9912.731184 | P44: 0 | Q44: 15 | R44: 9912.731184
A45: Y - 8 | B45: Vibration | C45: 15-06-2018 | D45: SPF | E45: 3.81x18.288 | F45: No. 2 | G45: SI | H45: 3.810004115 | I45: 18.28801975 | J45: 3.658001975 | K45: 11.46955406 | L45: 6.64 | M45: 11940.39622 | N45: 11.46955406 | O45: 11940.39622 | P45: 0 | Q45: 15 | R45: 11940.39622
A46: Y - 9 | B46: Vibration | C46: 15-06-2018 | D46: SPF | E46: 1.5x7.2 | F46: No. 1 | G46: Imperial | H46: 3.810002057 | I46: 18.28800988 | J46: 3.6579048 | K46: 11.46926831 | L46: 6.45 | M46: 11265.6827 | N46: 11.46926831 | O46: 11265.6827 | P46: 0 | Q46: 15 | R46: 11265.6827
A47: Y - 10 | B47: Vibration | C47: 15-06-2018 | D47: SPF | E47: 1.5x7.2 | F47: No. 1 | G47: Imperial | H47: 3.810002057 | I47: 18.28800988 | J47: 3.6579048 | K47: 11.46926831 | L47: 6.05 | M47: 9911.715668 | N47: 11.46926831 | O47: 9911.715668 | P47: 0 | Q47: 15 | R47: 9911.715668
A48: Y - 11 | B48: Vibration | C48: 15-06-2018 | D48: SPF | E48: 1.5x7.2 | F48: No. 1 | G48: Imperial | H48: 3.810002057 | I48: 18.28800988 | J48: 3.6579048 | K48: 11.46926831 | L48: 6.64 | M48: 11939.17298 | N48: 11.46926831 | O48: 11939.17298 | P48: 0 | Q48: 15 | R48: 11939.17298
A49: Y - 12 | B49: Soundwave | C49: 15-06-2018 | D49: SPF | E49: 1.5x7.2 | F49: No. 1 | G49: Imperial | H49: 3.810002057 | I49: 18.28800988 | J49: 3.6579048 | K49: 11.46926831 | L49: 648.53 | M49: 10132.0479 | N49: 11.46926831 | O49: 10132.0479 | P49: 0 | Q49: 15 | R49: 10132.0479
A50: Y - 13 | B50: Soundwave | C50: 15-06-2018 | D50: SPF | E50: 1.5x7.2 | F50: No. 1 | G50: Imperial | H50: 3.810002057 | I50: 18.28800988 | J50: 3.6579048 | K50: 11.46926831 | L50: 639.13 | M50: 9840.462243 | N50: 11.46926831 | O50: 9840.462243 | P50: 0 | Q50: 15 | R50: 9840.462243
A51: Y - 14 | B51: Soundwave | C51: 15-06-2018 | D51: SPF | E51: 1.5x7.2 | F51: No. 1 | G51: Imperial | H51: 3.810002057 | I51: 18.28800988 | J51: 3.6579048 | K51: 11.46926831 | L51: 722.95 | M51: 12590.80845 | N51: 11.46926831 | O51: 12590.80845 | P51: 0 | Q51: 15 | R51: 12590.80845

Sheet Calcs (hidden)
A1: Specimen | B1: Test | C1: =Input!C1 -> Date | D1: Species | E1: Tested | F1: Cross | G1: Equivalent | H1: Depth | I1: Width | J1: Length | K1: Weight | L1: Frequency | M1: Stiffness | N1: New Weight | O1: Stiffness-psi | P1: Current | Q1: Final | R1: Stiffness-psi | T1: Specimen | U1: Test | V1: =C1 -> Date | W1: Species | X1: Cross | Y1: Equivalent | Z1: Tested | AA1: Depth | AB1: Width | AC1: Length | AD1: Weight | AE1: =L1 -> Frequency | AF1: Stiffness | AG1: New Weight | AH1: Stiffness-Mpa | AI1: =P1 -> Current | AJ1: =Q1 -> Final | AK1: Stiffness-Mpa
A2: No. | B2: Method | E2: Measure | F2: Section | G2: To | H2: Inches | I2: Inches | J2: Feet | K2: lbs | M2: psi | N2: lbs | O2: Wgt Adjusted | P2: MC% | Q2: MC% | R2: MC Adjusted | T2: No. | U2: Method | X2: Section | Y2: To | Z2: Measure | AA2: CM | AB2: CM | AC2: Meters | AD2: Kg | AF2: Mpa | AG2: Kg | AH2: Wgt Adjusted | AI2: MC% | AJ2: MC% | AK2: MC Adjusted
A3: =Input!A3 -> a | B3: =Input!B3 -> Vibration | C3: =Input!C3 -> 2018-12-06 | D3: =IF(Input!D3="Southern Yellow Pine","SYP",IF(Input!D3="Douglas-fir","DF",IF(Input!D3="SPF (spruce pine fir)","SPF","Other"))) -> SYP | E3: =IF(RIGHT(Input!E3,4)="inch","Imperial","SI") -> Imperial | F3: =IF(E3="Imperial",IF(Input!G3="1.5x3.5","2x4",IF(Input!G3="1.5x5.5","2x6",IF(Input!G3="1.5x7.25","2x8",IF(Input!G3="1.5x9.25","2x10",IF(Input!G3="1.5x11.25","2x12",Input!G3))))),Input!G3) -> 2x8 | G3: =Input!L3 -> No. 3 | H3: =IF(RIGHT(Input!E3,4)="inch",VALUE(LEFT(Input!E3,LEN(Input!E3)-4)),VALUE(LEFT(Input!E3,LEN(Input!E3)-10))*0.393701) -> 2 | I3: =IF(RIGHT(Input!F3,4)="inch",VALUE(LEFT(Input!F3,LEN(Input!F3)-4)),VALUE(LEFT(Input!F3,LEN(Input!F3)-10))*0.393701) -> 8 | J3: =IF(RIGHT(Input!H3,4)="Feet",VALUE(LEFT(Input!H3,LEN(Input!H3)-4)),VALUE(LEFT(Input!H3,LEN(Input!H3)-5))*3.28084166666666) -> 12 | K3: =IF(RIGHT(Input!I3,2)="LB",VALUE(LEFT(Input!I3,LEN(Input!I3)-2)),VALUE(LEFT(Input!I3,LEN(Input!I3)-2))*2.20462) -> 41.61865 | L3: =VALUE(LEFT(Input!J3,LEN(Input!J3)-3)) -> 6.05 | M3: =IF(B3="vibration",(L3^2*K3*J3^3*1728)/(2.46*I3*H3^3/12)/386/1000000,(K3/(H3*I3*J3*12))*4*J3*J3*12*12*L3*L3/386/1000000) -> 0.8981835041 | N3: =IF(Input!M3>0,Input!M3,IF(Input!N3>0,Input!N3*2.20462,K3)) -> 41.61865 | O3: =IF(B3="vibration",(L3^2*N3*J3^3*1728)/(2.46*I3*H3^3/12)/386/1000000,(N3/(H3*I3*J3*12))*4*J3*J3*12*12*L3*L3/386/1000000) -> 0.8981835041 | P3: =Input!O3 -> 0 | Q3: =Menu!V$11 -> 15 | R3: =IF(Input!O3>0,O3*(1.857-(0.0237*Menu!V$11))/(1.857-(0.0237*Input!O3)),O3) -> 0.8981835041 | T3: =A3 -> a | U3: Vibration | V3: 2018-12-06 | W3: SYP | X3: =F3 -> 2x8 | Y3: No. 3 | Z3: =E3 -> Imperial | AA3: =H3*2.5400013716 -> 5.080002743 | AB3: =(I3*2.5400013716) -> 20.32001097 | AC3: =(J3*0.3048) -> 3.6576 | AD3: =(K3*0.453592) -> 18.87788669 | AE3: =L3 -> 6.05 | AF3: =M3*6894.76 -> 6192.759697 | AG3: =(N3*0.453592) -> 18.87788669 | AH3: =O3*6894.76 -> 6192.759697 | AI3: 0 | AJ3: 15 | AK3: =R3*6894.76 -> 6192.759697
A4: =Input!A4 -> a - 1 | B4: =Input!B4 -> Vibration | C4: =Input!C4 -> 2018-12-06 | D4: =IF(Input!D4="Southern Yellow Pine","SYP",IF(Input!D4="Douglas-fir","DF",IF(Input!D4="SPF (spruce pine fir)","SPF","Other"))) -> SYP | E4: =IF(RIGHT(Input!E4,4)="inch","Imperial","SI") -> Imperial | F4: =IF(E4="Imperial",IF(Input!G4="1.5x3.5","2x4",IF(Input!G4="1.5x5.5","2x6",IF(Input!G4="1.5x7.25","2x8",IF(Input!G4="1.5x9.25","2x10",IF(Input!G4="1.5x11.25","2x12",Input!G4))))),Input!G4) -> 2x8 | G4: =Input!L4 -> No. 3 | H4: =IF(RIGHT(Input!E4,4)="inch",VALUE(LEFT(Input!E4,LEN(Input!E4)-4)),VALUE(LEFT(Input!E4,LEN(Input!E4)-10))*0.393701) -> 2 | I4: =IF(RIGHT(Input!F4,4)="inch",VALUE(LEFT(Input!F4,LEN(Input!F4)-4)),VALUE(LEFT(Input!F4,LEN(Input!F4)-10))*0.393701) -> 8 | J4: =IF(RIGHT(Input!H4,4)="Feet",VALUE(LEFT(Input!H4,LEN(Input!H4)-4)),VALUE(LEFT(Input!H4,LEN(Input!H4)-5))*3.28084166666666) -> 12 | K4: =IF(RIGHT(Input!I4,2)="LB",VALUE(LEFT(Input!I4,LEN(Input!I4)-2)),VALUE(LEFT(Input!I4,LEN(Input!I4)-2))*2.20462) -> 41.61865 | L4: =VALUE(LEFT(Input!J4,LEN(Input!J4)-3)) -> 6.25 | M4: =IF(B4="vibration",(L4^2*K4*J4^3*1728)/(2.46*I4*H4^3/12)/386/1000000,(K4/(H4*I4*J4*12))*4*J4*J4*12*12*L4*L4/386/1000000) -> 0.9585490917 | N4: =IF(Input!M4>0,Input!M4,IF(Input!N4>0,Input!N4*2.20462,K4)) -> 41.61865 | O4: =IF(B4="vibration",(L4^2*N4*J4^3*1728)/(2.46*I4*H4^3/12)/386/1000000,(N4/(H4*I4*J4*12))*4*J4*J4*12*12*L4*L4/386/1000000) -> 0.9585490917 | P4: =Input!O4 -> 0 | Q4: =Menu!V$11 -> 15 | R4: =IF(Input!O4>0,O4*(1.857-(0.0237*Menu!V$11))/(1.857-(0.0237*Input!O4)),O4) -> 0.9585490917 | T4: =A4 -> a - 1 | U4: =B4 -> Vibration | V4: =C4 -> 2018-12-06 | W4: =D4 -> SYP | X4: =F4 -> 2x8 | Y4: =G4 -> No. 3 | Z4: =E4 -> Imperial | AA4: =H4*2.5400013716 -> 5.080002743 | AB4: =(I4*2.5400013716) -> 20.32001097 | AC4: =(J4*0.3048) -> 3.6576 | AD4: =(K4*0.453592) -> 18.87788669 | AE4: =L4 -> 6.25 | AF4: =M4*6894.76 -> 6608.965935 | AG4: =(N4*0.453592) -> 18.87788669 | AH4: =O4*6894.76 -> 6608.965935 | AI4: =P4 -> 0 | AJ4: =Q4 -> 15 | AK4: =R4*6894.76 -> 6608.965935
A5: =Input!A5 -> b | B5: =Input!B5 -> Vibration | C5: =Input!C5 -> 2018-12-06 | D5: =IF(Input!D5="Southern Yellow Pine","SYP",IF(Input!D5="Douglas-fir","DF",IF(Input!D5="SPF (spruce pine fir)","SPF","Other"))) -> SYP | E5: =IF(RIGHT(Input!E5,4)="inch","Imperial","SI") -> SI | F5: =IF(E5="Imperial",IF(Input!G5="1.5x3.5","2x4",IF(Input!G5="1.5x5.5","2x6",IF(Input!G5="1.5x7.25","2x8",IF(Input!G5="1.5x9.25","2x10",IF(Input!G5="1.5x11.25","2x12",Input!G5))))),Input!G5) -> 5.08x20.32 | G5: =Input!L5 -> No. 3 | H5: =IF(RIGHT(Input!E5,4)="inch",VALUE(LEFT(Input!E5,LEN(Input!E5)-4)),VALUE(LEFT(Input!E5,LEN(Input!E5)-10))*0.393701) -> 2.00000108 | I5: =IF(RIGHT(Input!F5,4)="inch",VALUE(LEFT(Input!F5,LEN(Input!F5)-4)),VALUE(LEFT(Input!F5,LEN(Input!F5)-10))*0.393701) -> 8.00000432 | J5: =IF(RIGHT(Input!H5,4)="Feet",VALUE(LEFT(Input!H5,LEN(Input!H5)-4)),VALUE(LEFT(Input!H5,LEN(Input!H5)-5))*3.28084166666666) -> 12.00131882 | K5: =IF(RIGHT(Input!I5,2)="LB",VALUE(LEFT(Input!I5,LEN(Input!I5)-2)),VALUE(LEFT(Input!I5,LEN(Input!I5)-2))*2.20462) -> 41.62314235 | L5: =VALUE(LEFT(Input!J5,LEN(Input!J5)-3)) -> 7.23 | M5: 1.2832759 | N5: =IF(Input!M5>0,Input!M5,IF(Input!N5>0,Input!N5*2.20462,K5)) -> 41.62314235 | O5: 1.2832759 | P5: =Input!O5 -> 0 | Q5: =Menu!V$11 -> 15 | R5: =IF(Input!O5>0,O5*(1.857-(0.0237*Menu!V$11))/(1.857-(0.0237*Input!O5)),O5) -> 1.2832759 | T5: b | U5: Vibration | V5: 2018-12-06 | W5: SYP | X5: 5.08x20.32 | Y5: No. 3 | Z5: SI | AA5: 5.080005486 | AB5: 20.32002195 | AC5: 3.658001975 | AD5: 18.87992439 | AE5: 7.23 | AF5: 8847.879344 | AG5: 18.87992439 | AH5: 8847.879344 | AI5: 0 | AJ5: 15 | AK5: 8847.879344
A6: =Input!A6 -> b - 1 | B6: =Input!B6 -> Vibration | C6: =Input!C6 -> 2018-12-06 | D6: =IF(Input!D6="Southern Yellow Pine","SYP",IF(Input!D6="Douglas-fir","DF",IF(Input!D6="SPF (spruce pine fir)","SPF","Other"))) -> SYP | E6: =IF(RIGHT(Input!E6,4)="inch","Imperial","SI") -> SI | F6: =IF(E6="Imperial",IF(Input!G6="1.5x3.5","2x4",IF(Input!G6="1.5x5.5","2x6",IF(Input!G6="1.5x7.25","2x8",IF(Input!G6="1.5x9.25","2x10",IF(Input!G6="1.5x11.25","2x12",Input!G6))))),Input!G6) -> 5.08x20.32 | G6: =Input!L6 -> No. 3 | H6: =IF(RIGHT(Input!E6,4)="inch",VALUE(LEFT(Input!E6,LEN(Input!E6)-4)),VALUE(LEFT(Input!E6,LEN(Input!E6)-10))*0.393701) -> 2.00000108 | I6: =IF(RIGHT(Input!F6,4)="inch",VALUE(LEFT(Input!F6,LEN(Input!F6)-4)),VALUE(LEFT(Input!F6,LEN(Input!F6)-10))*0.393701) -> 8.00000432 | J6: =IF(RIGHT(Input!H6,4)="Feet",VALUE(LEFT(Input!H6,LEN(Input!H6)-4)),VALUE(LEFT(Input!H6,LEN(Input!H6)-5))*3.28084166666666) -> 12.00131882 | K6: =IF(RIGHT(Input!I6,2)="LB",VALUE(LEFT(Input!I6,LEN(Input!I6)-2)),VALUE(LEFT(Input!I6,LEN(Input!I6)-2))*2.20462) -> 41.62314235 | L6: =VALUE(LEFT(Input!J6,LEN(Input!J6)-3)) -> 5.86 | M6: 0.8430215483 | N6: =IF(Input!M6>0,Input!M6,IF(Input!N6>0,Input!N6*2.20462,K6)) -> 41.62314235 | O6: 0.8430215483 | P6: =Input!O6 -> 0 | Q6: =Menu!V$11 -> 15 | R6: =IF(Input!O6>0,O6*(1.857-(0.0237*Menu!V$11))/(1.857-(0.0237*Input!O6)),O6) -> 0.8430215483 | T6: b - 1 | U6: Vibration | V6: 2018-12-06 | W6: SYP | X6: 5.08x20.32 | Y6: No. 3 | Z6: SI | AA6: 5.080005486 | AB6: 20.32002195 | AC6: 3.658001975 | AD6: 18.87992439 | AE6: 5.86 | AF6: 5812.431251 | AG6: 18.87992439 | AH6: 5812.431251 | AI6: 0 | AJ6: 15 | AK6: 5812.431251
A7: =Input!A7 -> T | B7: =Input!B7 -> Vibration | C7: =Input!C7 -> 15-06-2018 | D7: =IF(Input!D7="Southern Yellow Pine","SYP",IF(Input!D7="Douglas-fir","DF",IF(Input!D7="SPF (spruce pine fir)","SPF","Other"))) -> SYP | E7: =IF(RIGHT(Input!E7,4)="inch","Imperial","SI") -> Imperial | F7: =IF(E7="Imperial",IF(Input!G7="1.5x3.5","2x4",IF(Input!G7="1.5x5.5","2x6",IF(Input!G7="1.5x7.25","2x8",IF(Input!G7="1.5x9.25","2x10",IF(Input!G7="1.5x11.25","2x12",Input!G7))))),Input!G7) -> 2x8 | G7: =Input!L7 -> No. 1 | H7: =IF(RIGHT(Input!E7,4)="inch",VALUE(LEFT(Input!E7,LEN(Input!E7)-4)),VALUE(LEFT(Input!E7,LEN(Input!E7)-10))*0.393701) -> 1.5 | I7: =IF(RIGHT(Input!F7,4)="inch",VALUE(LEFT(Input!F7,LEN(Input!F7)-4)),VALUE(LEFT(Input!F7,LEN(Input!F7)-10))*0.393701) -> 7.25 | J7: =IF(RIGHT(Input!H7,4)="Feet",VALUE(LEFT(Input!H7,LEN(Input!H7)-4)),VALUE(LEFT(Input!H7,LEN(Input!H7)-5))*3.28084166666666) -> 12 | K7: =IF(RIGHT(Input!I7,2)="LB",VALUE(LEFT(Input!I7,LEN(Input!I7)-2)),VALUE(LEFT(Input!I7,LEN(Input!I7)-2))*2.20462) -> 28.287676 | L7: =VALUE(LEFT(Input!J7,LEN(Input!J7)-3)) -> 6.45 | M7: 1.814893834 | N7: =IF(Input!M7>0,Input!M7,IF(Input!N7>0,Input!N7*2.20462,K7)) -> 28.287676 | O7: 1.814893834 | P7: =Input!O7 -> 0 | Q7: =Menu!V$11 -> 15 | R7: =IF(Input!O7>0,O7*(1.857-(0.0237*Menu!V$11))/(1.857-(0.0237*Input!O7)),O7) -> 1.814893834 | T7: T | U7: Vibration | V7: 15-06-2018 | W7: SYP | X7: 2x8 | Y7: No. 1 | Z7: Imperial | AA7: 3.810002057 | AB7: 18.41500994 | AC7: 3.6576 | AD7: 12.83106353 | AE7: 6.45 | AF7: 12513.25741 | AG7: 12.83106353 | AH7: 12513.25741 | AI7: 0 | AJ7: 15 | AK7: 12513.25741
A8: =Input!A8 -> T - 1 | B8: =Input!B8 -> Vibration | C8: =Input!C8 -> 15-06-2018 | D8: =IF(Input!D8="Southern Yellow Pine","SYP",IF(Input!D8="Douglas-fir","DF",IF(Input!D8="SPF (spruce pine fir)","SPF","Other"))) -> SYP | E8: =IF(RIGHT(Input!E8,4)="inch","Imperial","SI") -> Imperial | F8: =IF(E8="Imperial",IF(Input!G8="1.5x3.5","2x4",IF(Input!G8="1.5x5.5","2x6",IF(Input!G8="1.5x7.25","2x8",IF(Input!G8="1.5x9.25","2x10",IF(Input!G8="1.5x11.25","2x12",Input!G8))))),Input!G8) -> 2x8 | G8: =Input!L8 -> No. 2 | H8: =IF(RIGHT(Input!E8,4)="inch",VALUE(LEFT(Input!E8,LEN(Input!E8)-4)),VALUE(LEFT(Input!E8,LEN(Input!E8)-10))*0.393701) -> 1.5 | I8: =IF(RIGHT(Input!F8,4)="inch",VALUE(LEFT(Input!F8,LEN(Input!F8)-4)),VALUE(LEFT(Input!F8,LEN(Input!F8)-10))*0.393701) -> 7.25 | J8: =IF(RIGHT(Input!H8,4)="Feet",VALUE(LEFT(Input!H8,LEN(Input!H8)-4)),VALUE(LEFT(Input!H8,LEN(Input!H8)-5))*3.28084166666666) -> 12 | K8: =IF(RIGHT(Input!I8,2)="LB",VALUE(LEFT(Input!I8,LEN(Input!I8)-2)),VALUE(LEFT(Input!I8,LEN(Input!I8)-2))*2.20462) -> 28.287676 | L8: =VALUE(LEFT(Input!J8,LEN(Input!J8)-3)) -> 6.05 | M8: 1.596770664 | N8: =IF(Input!M8>0,Input!M8,IF(Input!N8>0,Input!N8*2.20462,K8)) -> 28.287676 | O8: 1.596770664 | P8: =Input!O8 -> 0 | Q8: =Menu!V$11 -> 15 | R8: =IF(Input!O8>0,O8*(1.857-(0.0237*Menu!V$11))/(1.857-(0.0237*Input!O8)),O8) -> 1.596770664 | T8: T - 1 | U8: Vibration | V8: 15-06-2018 | W8: SYP | X8: 2x8 | Y8: No. 2 | Z8: Imperial | AA8: 3.810002057 | AB8: 18.41500994 | AC8: 3.6576 | AD8: 12.83106353 | AE8: 6.05 | AF8: 11009.3505 | AG8: 12.83106353 | AH8: 11009.3505 | AI8: 0 | AJ8: 15 | AK8: 11009.3505
A9: =Input!A9 -> T - 2 | B9: =Input!B9 -> Vibration | C9: =Input!C9 -> 15-06-2018 | D9: =IF(Input!D9="Southern Yellow Pine","SYP",IF(Input!D9="Douglas-fir","DF",IF(Input!D9="SPF (spruce pine fir)","SPF","Other"))) -> SYP | E9: =IF(RIGHT(Input!E9,4)="inch","Imperial","SI") -> Imperial | F9: =IF(E9="Imperial",IF(Input!G9="1.5x3.5","2x4",IF(Input!G9="1.5x5.5","2x6",IF(Input!G9="1.5x7.25","2x8",IF(Input!G9="1.5x9.25","2x10",IF(Input!G9="1.5x11.25","2x12",Input!G9))))),Input!G9) -> 2x8 | G9: =Input!L9 -> No. 1 | H9: =IF(RIGHT(Input!E9,4)="inch",VALUE(LEFT(Input!E9,LEN(Input!E9)-4)),VALUE(LEFT(Input!E9,LEN(Input!E9)-10))*0.393701) -> 1.5 | I9: =IF(RIGHT(Input!F9,4)="inch",VALUE(LEFT(Input!F9,LEN(Input!F9)-4)),VALUE(LEFT(Input!F9,LEN(Input!F9)-10))*0.393701) -> 7.25 | J9: =IF(RIGHT(Input!H9,4)="Feet",VALUE(LEFT(Input!H9,LEN(Input!H9)-4)),VALUE(LEFT(Input!H9,LEN(Input!H9)-5))*3.28084166666666) -> 12 | K9: =IF(RIGHT(Input!I9,2)="LB",VALUE(LEFT(Input!I9,LEN(Input!I9)-2)),VALUE(LEFT(Input!I9,LEN(Input!I9)-2))*2.20462) -> 28.287676 | L9: =VALUE(LEFT(Input!J9,LEN(Input!J9)-3)) -> 6.64 | M9: 1.923392661 | N9: =IF(Input!M9>0,Input!M9,IF(Input!N9>0,Input!N9*2.20462,K9)) -> 28.287676 | O9: 1.923392661 | P9: =Input!O9 -> 0 | Q9: =Menu!V$11 -> 15 | R9: =IF(Input!O9>0,O9*(1.857-(0.0237*Menu!V$11))/(1.857-(0.0237*Input!O9)),O9) -> 1.923392661 | T9: T - 2 | U9: Vibration | V9: 15-06-2018 | W9: SYP | X9: 2x8 | Y9: No. 1 | Z9: Imperial | AA9: 3.810002057 | AB9: 18.41500994 | AC9: 3.6576 | AD9: 12.83106353 | AE9: 6.64 | AF9: 13261.33078 | AG9: 12.83106353 | AH9: 13261.33078 | AI9: 0 | AJ9: 15 | AK9: 13261.33078
A10: =Input!A10 -> T - 3 | B10: =Input!B10 -> Vibration | C10: =Input!C10 -> 15-06-2018 | D10: =IF(Input!D10="Southern Yellow Pine","SYP",IF(Input!D10="Douglas-fir","DF",IF(Input!D10="SPF (spruce pine fir)","SPF","Other"))) -> SYP | E10: =IF(RIGHT(Input!E10,4)="inch","Imperial","SI") -> Imperial | F10: =IF(E10="Imperial",IF(Input!G10="1.5x3.5","2x4",IF(Input!G10="1.5x5.5","2x6",IF(Input!G10="1.5x7.25","2x8",IF(Input!G10="1.5x9.25","2x10",IF(Input!G10="1.5x11.25","2x12",Input!G10))))),Input!G10) -> 2x8 | G10: =Input!L10 -> No. 1 | H10: =IF(RIGHT(Input!E10,4)="inch",VALUE(LEFT(Input!E10,LEN(Input!E10)-4)),VALUE(LEFT(Input!E10,LEN(Input!E10)-10))*0.393701) -> 1.5 | I10: =IF(RIGHT(Input!F10,4)="inch",VALUE(LEFT(Input!F10,LEN(Input!F10)-4)),VALUE(LEFT(Input!F10,LEN(Input!F10)-10))*0.393701) -> 7.25 | J10: =IF(RIGHT(Input!H10,4)="Feet",VALUE(LEFT(Input!H10,LEN(Input!H10)-4)),VALUE(LEFT(Input!H10,LEN(Input!H10)-5))*3.28084166666666) -> 12 | K10: =IF(RIGHT(Input!I10,2)="LB",VALUE(LEFT(Input!I10,LEN(Input!I10)-2)),VALUE(LEFT(Input!I10,LEN(Input!I10)-2))*2.20462) -> 28.287676 | L10: =VALUE(LEFT(Input!J10,LEN(Input!J10)-3)) -> 6.45 | M10: 1.814893834 | N10: =IF(Input!M10>0,Input!M10,IF(Input!N10>0,Input!N10*2.20462,K10)) -> 28.287676 | O10: 1.814893834 | P10: =Input!O10 -> 0 | Q10: =Menu!V$11 -> 15 | R10: =IF(Input!O10>0,O10*(1.857-(0.0237*Menu!V$11))/(1.857-(0.0237*Input!O10)),O10) -> 1.814893834 | T10: T - 3 | U10: Vibration | V10: 15-06-2018 | W10: SYP | X10: 2x8 | Y10: No. 1 | Z10: Imperial | AA10: 3.810002057 | AB10: 18.41500994 | AC10: 3.6576 | AD10: 12.83106353 | AE10: 6.45 | AF10: 12513.25741 | AG10: 12.83106353 | AH10: 12513.25741 | AI10: 0 | AJ10: 15 | AK10: 12513.25741
A11: =Input!A11 -> T - 4 | B11: =Input!B11 -> Vibration | C11: =Input!C11 -> 15-06-2018 | D11: =IF(Input!D11="Southern Yellow Pine","SYP",IF(Input!D11="Douglas-fir","DF",IF(Input!D11="SPF (spruce pine fir)","SPF","Other"))) -> SYP | E11: =IF(RIGHT(Input!E11,4)="inch","Imperial","SI") -> Imperial | F11: =IF(E11="Imperial",IF(Input!G11="1.5x3.5","2x4",IF(Input!G11="1.5x5.5","2x6",IF(Input!G11="1.5x7.25","2x8",IF(Input!G11="1.5x9.25","2x10",IF(Input!G11="1.5x11.25","2x12",Input!G11))))),Input!G11) -> 2x8 | G11: =Input!L11 -> No. 2 | H11: =IF(RIGHT(Input!E11,4)="inch",VALUE(LEFT(Input!E11,LEN(Input!E11)-4)),VALUE(LEFT(Input!E11,LEN(Input!E11)-10))*0.393701) -> 1.5 | I11: =IF(RIGHT(Input!F11,4)="inch",VALUE(LEFT(Input!F11,LEN(Input!F11)-4)),VALUE(LEFT(Input!F11,LEN(Input!F11)-10))*0.393701) -> 7.25 | J11: =IF(RIGHT(Input!H11,4)="Feet",VALUE(LEFT(Input!H11,LEN(Input!H11)-4)),VALUE(LEFT(Input!H11,LEN(Input!H11)-5))*3.28084166666666) -> 12 | K11: =IF(RIGHT(Input!I11,2)="LB",VALUE(LEFT(Input!I11,LEN(Input!I11)-2)),VALUE(LEFT(Input!I11,LEN(Input!I11)-2))*2.20462) -> 28.287676 | L11: =VALUE(LEFT(Input!J11,LEN(Input!J11)-3)) -> 6.05 | M11: 1.596770664 | N11: =IF(Input!M11>0,Input!M11,IF(Input!N11>0,Input!N11*2.20462,K11)) -> 28.287676 | O11: 1.596770664 | P11: =Input!O11 -> 0 | Q11: =Menu!V$11 -> 15 | R11: =IF(Input!O11>0,O11*(1.857-(0.0237*Menu!V$11))/(1.857-(0.0237*Input!O11)),O11) -> 1.596770664 | T11: T - 4 | U11: Vibration | V11: 15-06-2018 | W11: SYP | X11: 2x8 | Y11: No. 2 | Z11: Imperial | AA11: 3.810002057 | AB11: 18.41500994 | AC11: 3.6576 | AD11: 12.83106353 | AE11: 6.05 | AF11: 11009.3505 | AG11: 12.83106353 | AH11: 11009.3505 | AI11: 0 | AJ11: 15 | AK11: 11009.3505
A12: =Input!A12 -> T - 5 | B12: =Input!B12 -> Vibration | C12: =Input!C12 -> 15-06-2018 | D12: =IF(Input!D12="Southern Yellow Pine","SYP",IF(Input!D12="Douglas-fir","DF",IF(Input!D12="SPF (spruce pine fir)","SPF","Other"))) -> SYP | E12: =IF(RIGHT(Input!E12,4)="inch","Imperial","SI") -> Imperial | F12: =IF(E12="Imperial",IF(Input!G12="1.5x3.5","2x4",IF(Input!G12="1.5x5.5","2x6",IF(Input!G12="1.5x7.25","2x8",IF(Input!G12="1.5x9.25","2x10",IF(Input!G12="1.5x11.25","2x12",Input!G12))))),Input!G12) -> 2x8 | G12: =Input!L12 -> No. 1 | H12: =IF(RIGHT(Input!E12,4)="inch",VALUE(LEFT(Input!E12,LEN(Input!E12)-4)),VALUE(LEFT(Input!E12,LEN(Input!E12)-10))*0.393701) -> 1.5 | I12: =IF(RIGHT(Input!F12,4)="inch",VALUE(LEFT(Input!F12,LEN(Input!F12)-4)),VALUE(LEFT(Input!F12,LEN(Input!F12)-10))*0.393701) -> 7.25 | J12: =IF(RIGHT(Input!H12,4)="Feet",VALUE(LEFT(Input!H12,LEN(Input!H12)-4)),VALUE(LEFT(Input!H12,LEN(Input!H12)-5))*3.28084166666666) -> 12 | K12: =IF(RIGHT(Input!I12,2)="LB",VALUE(LEFT(Input!I12,LEN(Input!I12)-2)),VALUE(LEFT(Input!I12,LEN(Input!I12)-2))*2.20462) -> 28.287676 | L12: =VALUE(LEFT(Input!J12,LEN(Input!J12)-3)) -> 6.64 | M12: 1.923392661 | N12: =IF(Input!M12>0,Input!M12,IF(Input!N12>0,Input!N12*2.20462,K12)) -> 28.287676 | O12: 1.923392661 | P12: =Input!O12 -> 0 | Q12: =Menu!V$11 -> 15 | R12: =IF(Input!O12>0,O12*(1.857-(0.0237*Menu!V$11))/(1.857-(0.0237*Input!O12)),O12) -> 1.923392661 | T12: T - 5 | U12: Vibration | V12: 15-06-2018 | W12: SYP | X12: 2x8 | Y12: No. 1 | Z12: Imperial | AA12: 3.810002057 | AB12: 18.41500994 | AC12: 3.6576 | AD12: 12.83106353 | AE12: 6.64 | AF12: 13261.33078 | AG12: 12.83106353 | AH12: 13261.33078 | AI12: 0 | AJ12: 15 | AK12: 13261.33078
A13: =Input!A13 -> T - 6 | B13: =Input!B13 -> Vibration | C13: =Input!C13 -> 15-06-2018 | D13: =IF(Input!D13="Southern Yellow Pine","SYP",IF(Input!D13="Douglas-fir","DF",IF(Input!D13="SPF (spruce pine fir)","SPF","Other"))) -> SYP | E13: =IF(RIGHT(Input!E13,4)="inch","Imperial","SI") -> SI | F13: =IF(E13="Imperial",IF(Input!G13="1.5x3.5","2x4",IF(Input!G13="1.5x5.5","2x6",IF(Input!G13="1.5x7.25","2x8",IF(Input!G13="1.5x9.25","2x10",IF(Input!G13="1.5x11.25","2x12",Input!G13))))),Input!G13) -> 3.81x18.415 | G13: =Input!L13 -> No. 1 | H13: =IF(RIGHT(Input!E13,4)="inch",VALUE(LEFT(Input!E13,LEN(Input!E13)-4)),VALUE(LEFT(Input!E13,LEN(Input!E13)-10))*0.393701) -> 1.50000081 | I13: =IF(RIGHT(Input!F13,4)="inch",VALUE(LEFT(Input!F13,LEN(Input!F13)-4)),VALUE(LEFT(Input!F13,LEN(Input!F13)-10))*0.393701) -> 7.250003915 | J13: =IF(RIGHT(Input!H13,4)="Feet",VALUE(LEFT(Input!H13,LEN(Input!H13)-4)),VALUE(LEFT(Input!H13,LEN(Input!H13)-5))*3.28084166666666) -> 12.00131882 | K13: =IF(RIGHT(Input!I13,2)="LB",VALUE(LEFT(Input!I13,LEN(Input!I13)-2)),VALUE(LEFT(Input!I13,LEN(Input!I13)-2))*2.20462) -> 28.29072957 | L13: =VALUE(LEFT(Input!J13,LEN(Input!J13)-3)) -> 6.45 | M13: 1.815684333 | N13: =IF(Input!M13>0,Input!M13,IF(Input!N13>0,Input!N13*2.20462,K13)) -> 28.29072957 | O13: 1.815684333 | P13: =Input!O13 -> 0 | Q13: =Menu!V$11 -> 15 | R13: =IF(Input!O13>0,O13*(1.857-(0.0237*Menu!V$11))/(1.857-(0.0237*Input!O13)),O13) -> 1.815684333 | T13: T - 6 | U13: Vibration | V13: 15-06-2018 | W13: SYP | X13: 3.81x18.415 | Y13: No. 1 | Z13: SI | AA13: 3.810004115 | AB13: 18.41501989 | AC13: 3.658001975 | AD13: 12.83244861 | AE13: 6.45 | AF13: 12518.70771 | AG13: 12.83244861 | AH13: 12518.70771 | AI13: 0 | AJ13: 15 | AK13: 12518.70771
A14: =Input!A14 -> T - 7 | B14: =Input!B14 -> Vibration | C14: =Input!C14 -> 15-06-2018 | D14: =IF(Input!D14="Southern Yellow Pine","SYP",IF(Input!D14="Douglas-fir","DF",IF(Input!D14="SPF (spruce pine fir)","SPF","Other"))) -> SYP | E14: =IF(RIGHT(Input!E14,4)="inch","Imperial","SI") -> SI | F14: =IF(E14="Imperial",IF(Input!G14="1.5x3.5","2x4",IF(Input!G14="1.5x5.5","2x6",IF(Input!G14="1.5x7.25","2x8",IF(Input!G14="1.5x9.25","2x10",IF(Input!G14="1.5x11.25","2x12",Input!G14))))),Input!G14) -> 3.81x18.415 | G14: =Input!L14 -> No. 2 | H14: =IF(RIGHT(Input!E14,4)="inch",VALUE(LEFT(Input!E14,LEN(Input!E14)-4)),VALUE(LEFT(Input!E14,LEN(Input!E14)-10))*0.393701) -> 1.50000081 | I14: =IF(RIGHT(Input!F14,4)="inch",VALUE(LEFT(Input!F14,LEN(Input!F14)-4)),VALUE(LEFT(Input!F14,LEN(Input!F14)-10))*0.393701) -> 7.250003915 | J14: =IF(RIGHT(Input!H14,4)="Feet",VALUE(LEFT(Input!H14,LEN(Input!H14)-4)),VALUE(LEFT(Input!H14,LEN(Input!H14)-5))*3.28084166666666) -> 12.00131882 | K14: =IF(RIGHT(Input!I14,2)="LB",VALUE(LEFT(Input!I14,LEN(Input!I14)-2)),VALUE(LEFT(Input!I14,LEN(Input!I14)-2))*2.20462) -> 28.29072957 | L14: =VALUE(LEFT(Input!J14,LEN(Input!J14)-3)) -> 6.05 | M14: 1.597466157 | N14: =IF(Input!M14>0,Input!M14,IF(Input!N14>0,Input!N14*2.20462,K14)) -> 28.29072957 | O14: 1.597466157 | P14: =Input!O14 -> 0 | Q14: =Menu!V$11 -> 15 | R14: =IF(Input!O14>0,O14*(1.857-(0.0237*Menu!V$11))/(1.857-(0.0237*Input!O14)),O14) -> 1.597466157 | T14: T - 7 | U14: Vibration | V14: 15-06-2018 | W14: SYP | X14: 3.81x18.415 | Y14: No. 2 | Z14: SI | AA14: 3.810004115 | AB14: 18.41501989 | AC14: 3.658001975 | AD14: 12.83244861 | AE14: 6.05 | AF14: 11014.14576 | AG14: 12.83244861 | AH14: 11014.14576 | AI14: 0 | AJ14: 15 | AK14: 11014.14576
A15: =Input!A15 -> T - 8 | B15: =Input!B15 -> Vibration | C15: =Input!C15 -> 15-06-2018 | D15: =IF(Input!D15="Southern Yellow Pine","SYP",IF(Input!D15="Douglas-fir","DF",IF(Input!D15="SPF (spruce pine fir)","SPF","Other"))) -> SYP | E15: =IF(RIGHT(Input!E15,4)="inch","Imperial","SI") -> SI | F15: =IF(E15="Imperial",IF(Input!G15="1.5x3.5","2x4",IF(Input!G15="1.5x5.5","2x6",IF(Input!G15="1.5x7.25","2x8",IF(Input!G15="1.5x9.25","2x10",IF(Input!G15="1.5x11.25","2x12",Input!G15))))),Input!G15) -> 3.81x18.415 | G15: =Input!L15 -> No. 1 | H15: =IF(RIGHT(Input!E15,4)="inch",VALUE(LEFT(Input!E15,LEN(Input!E15)-4)),VALUE(LEFT(Input!E15,LEN(Input!E15)-10))*0.393701) -> 1.50000081 | I15: =IF(RIGHT(Input!F15,4)="inch",VALUE(LEFT(Input!F15,LEN(Input!F15)-4)),VALUE(LEFT(Input!F15,LEN(Input!F15)-10))*0.393701) -> 7.250003915 | J15: =IF(RIGHT(Input!H15,4)="Feet",VALUE(LEFT(Input!H15,LEN(Input!H15)-4)),VALUE(LEFT(Input!H15,LEN(Input!H15)-5))*3.28084166666666) -> 12.00131882 | K15: =IF(RIGHT(Input!I15,2)="LB",VALUE(LEFT(Input!I15,LEN(Input!I15)-2)),VALUE(LEFT(Input!I15,LEN(Input!I15)-2))*2.20462) -> 28.29072957 | L15: =VALUE(LEFT(Input!J15,LEN(Input!J15)-3)) -> 6.64 | M15: 1.924230418 | N15: =IF(Input!M15>0,Input!M15,IF(Input!N15>0,Input!N15*2.20462,K15)) -> 28.29072957 | O15: 1.924230418 | P15: =Input!O15 -> 0 | Q15: =Menu!V$11 -> 15 | R15: =IF(Input!O15>0,O15*(1.857-(0.0237*Menu!V$11))/(1.857-(0.0237*Input!O15)),O15) -> 1.924230418 | T15: T - 8 | U15: Vibration | V15: 15-06-2018 | W15: SYP | X15: 3.81x18.415 | Y15: No. 1 | Z15: SI | AA15: 3.810004115 | AB15: 18.41501989 | AC15: 3.658001975 | AD15: 12.83244861 | AE15: 6.64 | AF15: 13267.10692 | AG15: 12.83244861 | AH15: 13267.10692 | AI15: 0 | AJ15: 15 | AK15: 13267.10692
A16: =Input!A16 -> T - 9 | B16: =Input!B16 -> Vibration | C16: =Input!C16 -> 15-06-2018 | D16: =IF(Input!D16="Southern Yellow Pine","SYP",IF(Input!D16="Douglas-fir","DF",IF(Input!D16="SPF (spruce pine fir)","SPF","Other"))) -> SYP | E16: =IF(RIGHT(Input!E16,4)="inch","Imperial","SI") -> SI | F16: =IF(E16="Imperial",IF(Input!G16="1.5x3.5","2x4",IF(Input!G16="1.5x5.5","2x6",IF(Input!G16="1.5x7.25","2x8",IF(Input!G16="1.5x9.25","2x10",IF(Input!G16="1.5x11.25","2x12",Input!G16))))),Input!G16) -> 3.81x18.415 | G16: =Input!L16 -> No. 1 | H16: =IF(RIGHT(Input!E16,4)="inch",VALUE(LEFT(Input!E16,LEN(Input!E16)-4)),VALUE(LEFT(Input!E16,LEN(Input!E16)-10))*0.393701) -> 1.50000081 | I16: =IF(RIGHT(Input!F16,4)="inch",VALUE(LEFT(Input!F16,LEN(Input!F16)-4)),VALUE(LEFT(Input!F16,LEN(Input!F16)-10))*0.393701) -> 7.250003915 | J16: =IF(RIGHT(Input!H16,4)="Feet",VALUE(LEFT(Input!H16,LEN(Input!H16)-4)),VALUE(LEFT(Input!H16,LEN(Input!H16)-5))*3.28084166666666) -> 12.00131882 | K16: =IF(RIGHT(Input!I16,2)="LB",VALUE(LEFT(Input!I16,LEN(Input!I16)-2)),VALUE(LEFT(Input!I16,LEN(Input!I16)-2))*2.20462) -> 28.29072957 | L16: =VALUE(LEFT(Input!J16,LEN(Input!J16)-3)) -> 6.45 | M16: 1.815684333 | N16: =IF(Input!M16>0,Input!M16,IF(Input!N16>0,Input!N16*2.20462,K16)) -> 28.29072957 | O16: 1.815684333 | P16: =Input!O16 -> 0 | Q16: =Menu!V$11 -> 15 | R16: =IF(Input!O16>0,O16*(1.857-(0.0237*Menu!V$11))/(1.857-(0.0237*Input!O16)),O16) -> 1.815684333 | T16: T - 9 | U16: Vibration | V16: 15-06-2018 | W16: SYP | X16: 3.81x18.415 | Y16: No. 1 | Z16: SI | AA16: 3.810004115 | AB16: 18.41501989 | AC16: 3.658001975 | AD16: 12.83244861 | AE16: 6.45 | AF16: 12518.70771 | AG16: 12.83244861 | AH16: 12518.70771 | AI16: 0 | AJ16: 15 | AK16: 12518.70771
A17: =Input!A17 -> T - 10 | B17: =Input!B17 -> Vibration | C17: =Input!C17 -> 15-06-2018 | D17: =IF(Input!D17="Southern Yellow Pine","SYP",IF(Input!D17="Douglas-fir","DF",IF(Input!D17="SPF (spruce pine fir)","SPF","Other"))) -> SYP | E17: =IF(RIGHT(Input!E17,4)="inch","Imperial","SI") -> SI | F17: =IF(E17="Imperial",IF(Input!G17="1.5x3.5","2x4",IF(Input!G17="1.5x5.5","2x6",IF(Input!G17="1.5x7.25","2x8",IF(Input!G17="1.5x9.25","2x10",IF(Input!G17="1.5x11.25","2x12",Input!G17))))),Input!G17) -> 3.81x18.415 | G17: =Input!L17 -> No. 2 | H17: =IF(RIGHT(Input!E17,4)="inch",VALUE(LEFT(Input!E17,LEN(Input!E17)-4)),VALUE(LEFT(Input!E17,LEN(Input!E17)-10))*0.393701) -> 1.50000081 | I17: =IF(RIGHT(Input!F17,4)="inch",VALUE(LEFT(Input!F17,LEN(Input!F17)-4)),VALUE(LEFT(Input!F17,LEN(Input!F17)-10))*0.393701) -> 7.250003915 | J17: =IF(RIGHT(Input!H17,4)="Feet",VALUE(LEFT(Input!H17,LEN(Input!H17)-4)),VALUE(LEFT(Input!H17,LEN(Input!H17)-5))*3.28084166666666) -> 12.00131882 | K17: =IF(RIGHT(Input!I17,2)="LB",VALUE(LEFT(Input!I17,LEN(Input!I17)-2)),VALUE(LEFT(Input!I17,LEN(Input!I17)-2))*2.20462) -> 28.29072957 | L17: =VALUE(LEFT(Input!J17,LEN(Input!J17)-3)) -> 6.05 | M17: 1.597466157 | N17: =IF(Input!M17>0,Input!M17,IF(Input!N17>0,Input!N17*2.20462,K17)) -> 28.29072957 | O17: 1.597466157 | P17: =Input!O17 -> 0 | Q17: =Menu!V$11 -> 15 | R17: =IF(Input!O17>0,O17*(1.857-(0.0237*Menu!V$11))/(1.857-(0.0237*Input!O17)),O17) -> 1.597466157 | T17: T - 10 | U17: Vibration | V17: 15-06-2018 | W17: SYP | X17: 3.81x18.415 | Y17: No. 2 | Z17: SI | AA17: 3.810004115 | AB17: 18.41501989 | AC17: 3.658001975 | AD17: 12.83244861 | AE17: 6.05 | AF17: 11014.14576 | AG17: 12.83244861 | AH17: 11014.14576 | AI17: 0 | AJ17: 15 | AK17: 11014.14576
A18: =Input!A18 -> T - 11 | B18: =Input!B18 -> Vibration | C18: =Input!C18 -> 15-06-2018 | D18: =IF(Input!D18="Southern Yellow Pine","SYP",IF(Input!D18="Douglas-fir","DF",IF(Input!D18="SPF (spruce pine fir)","SPF","Other"))) -> SYP | E18: =IF(RIGHT(Input!E18,4)="inch","Imperial","SI") -> SI | F18: =IF(E18="Imperial",IF(Input!G18="1.5x3.5","2x4",IF(Input!G18="1.5x5.5","2x6",IF(Input!G18="1.5x7.25","2x8",IF(Input!G18="1.5x9.25","2x10",IF(Input!G18="1.5x11.25","2x12",Input!G18))))),Input!G18) -> 3.81x18.415 | G18: =Input!L18 -> No. 1 | H18: =IF(RIGHT(Input!E18,4)="inch",VALUE(LEFT(Input!E18,LEN(Input!E18)-4)),VALUE(LEFT(Input!E18,LEN(Input!E18)-10))*0.393701) -> 1.50000081 | I18: =IF(RIGHT(Input!F18,4)="inch",VALUE(LEFT(Input!F18,LEN(Input!F18)-4)),VALUE(LEFT(Input!F18,LEN(Input!F18)-10))*0.393701) -> 7.250003915 | J18: =IF(RIGHT(Input!H18,4)="Feet",VALUE(LEFT(Input!H18,LEN(Input!H18)-4)),VALUE(LEFT(Input!H18,LEN(Input!H18)-5))*3.28084166666666) -> 12.00131882 | K18: =IF(RIGHT(Input!I18,2)="LB",VALUE(LEFT(Input!I18,LEN(Input!I18)-2)),VALUE(LEFT(Input!I18,LEN(Input!I18)-2))*2.20462) -> 28.29072957 | L18: =VALUE(LEFT(Input!J18,LEN(Input!J18)-3)) -> 6.64 | M18: 1.924230418 | N18: =IF(Input!M18>0,Input!M18,IF(Input!N18>0,Input!N18*2.20462,K18)) -> 28.29072957 | O18: 1.924230418 | P18: =Input!O18 -> 0 | Q18: =Menu!V$11 -> 15 | R18: =IF(Input!O18>0,O18*(1.857-(0.0237*Menu!V$11))/(1.857-(0.0237*Input!O18)),O18) -> 1.924230418 | T18: T - 11 | U18: Vibration | V18: 15-06-2018 | W18: SYP | X18: 3.81x18.415 | Y18: No. 1 | Z18: SI | AA18: 3.810004115 | AB18: 18.41501989 | AC18: 3.658001975 | AD18: 12.83244861 | AE18: 6.64 | AF18: 13267.10692 | AG18: 12.83244861 | AH18: 13267.10692 | AI18: 0 | AJ18: 15 | AK18: 13267.10692
A19: =Input!A19 -> T - 12 | B19: =Input!B19 -> Soundwave | C19: =Input!C19 -> 15-06-2018 | D19: =IF(Input!D19="Southern Yellow Pine","SYP",IF(Input!D19="Douglas-fir","DF",IF(Input!D19="SPF (spruce pine fir)","SPF","Other"))) -> SYP | E19: =IF(RIGHT(Input!E19,4)="inch","Imperial","SI") -> Imperial | F19: =IF(E19="Imperial",IF(Input!G19="1.5x3.5","2x4",IF(Input!G19="1.5x5.5","2x6",IF(Input!G19="1.5x7.25","2x8",IF(Input!G19="1.5x9.25","2x10",IF(Input!G19="1.5x11.25","2x12",Input!G19))))),Input!G19) -> 2x8 | G19: =Input!L19 -> No. 2 | H19: =IF(RIGHT(Input!E19,4)="inch",VALUE(LEFT(Input!E19,LEN(Input!E19)-4)),VALUE(LEFT(Input!E19,LEN(Input!E19)-10))*0.393701) -> 1.5 | I19: =IF(RIGHT(Input!F19,4)="inch",VALUE(LEFT(Input!F19,LEN(Input!F19)-4)),VALUE(LEFT(Input!F19,LEN(Input!F19)-10))*0.393701) -> 7.25 | J19: =IF(RIGHT(Input!H19,4)="Feet",VALUE(LEFT(Input!H19,LEN(Input!H19)-4)),VALUE(LEFT(Input!H19,LEN(Input!H19)-5))*3.28084166666666) -> 12.001 | K19: =IF(RIGHT(Input!I19,2)="LB",VALUE(LEFT(Input!I19,LEN(Input!I19)-2)),VALUE(LEFT(Input!I19,LEN(Input!I19)-2))*2.20462) -> 28.290033 | L19: =VALUE(LEFT(Input!J19,LEN(Input!J19)-3)) -> 678.46 | M19: 1.786997944 | N19: =IF(Input!M19>0,Input!M19,IF(Input!N19>0,Input!N19*2.20462,K19)) -> 28.290033 | O19: 1.786997944 | P19: =Input!O19 -> 0 | Q19: =Menu!V$11 -> 15 | R19: =IF(Input!O19>0,O19*(1.857-(0.0237*Menu!V$11))/(1.857-(0.0237*Input!O19)),O19) -> 1.786997944 | T19: T - 12 | U19: Soundwave | V19: 15-06-2018 | W19: SYP | X19: 2x8 | Y19: No. 2 | Z19: Imperial | AA19: 3.810002057 | AB19: 18.41500994 | AC19: 3.6579048 | AD19: 12.83213265 | AE19: 678.46 | AF19: 12320.92195 | AG19: 12.83213265 | AH19: 12320.92195 | AI19: 0 | AJ19: 15 | AK19: 12320.92195
A20: =Input!A20 -> T - 13 | B20: =Input!B20 -> Soundwave | C20: =Input!C20 -> 15-06-2018 | D20: =IF(Input!D20="Southern Yellow Pine","SYP",IF(Input!D20="Douglas-fir","DF",IF(Input!D20="SPF (spruce pine fir)","SPF","Other"))) -> SYP | E20: =IF(RIGHT(Input!E20,4)="inch","Imperial","SI") -> Imperial | F20: =IF(E20="Imperial",IF(Input!G20="1.5x3.5","2x4",IF(Input!G20="1.5x5.5","2x6",IF(Input!G20="1.5x7.25","2x8",IF(Input!G20="1.5x9.25","2x10",IF(Input!G20="1.5x11.25","2x12",Input!G20))))),Input!G20) -> 2x8 | G20: =Input!L20 -> No. 2 | H20: =IF(RIGHT(Input!E20,4)="inch",VALUE(LEFT(Input!E20,LEN(Input!E20)-4)),VALUE(LEFT(Input!E20,LEN(Input!E20)-10))*0.393701) -> 1.5 | I20: =IF(RIGHT(Input!F20,4)="inch",VALUE(LEFT(Input!F20,LEN(Input!F20)-4)),VALUE(LEFT(Input!F20,LEN(Input!F20)-10))*0.393701) -> 7.25 | J20: =IF(RIGHT(Input!H20,4)="Feet",VALUE(LEFT(Input!H20,LEN(Input!H20)-4)),VALUE(LEFT(Input!H20,LEN(Input!H20)-5))*3.28084166666666) -> 12.001 | K20: =IF(RIGHT(Input!I20,2)="LB",VALUE(LEFT(Input!I20,LEN(Input!I20)-2)),VALUE(LEFT(Input!I20,LEN(Input!I20)-2))*2.20462) -> 28.290033 | L20: =VALUE(LEFT(Input!J20,LEN(Input!J20)-3)) -> 658.21 | M20: 1.681916802 | N20: =IF(Input!M20>0,Input!M20,IF(Input!N20>0,Input!N20*2.20462,K20)) -> 28.290033 | O20: 1.681916802 | P20: =Input!O20 -> 0 | Q20: =Menu!V$11 -> 15 | R20: =IF(Input!O20>0,O20*(1.857-(0.0237*Menu!V$11))/(1.857-(0.0237*Input!O20)),O20) -> 1.681916802 | T20: T - 13 | U20: Soundwave | V20: 15-06-2018 | W20: SYP | X20: 2x8 | Y20: No. 2 | Z20: Imperial | AA20: 3.810002057 | AB20: 18.41500994 | AC20: 3.6579048 | AD20: 12.83213265 | AE20: 658.21 | AF20: 11596.41269 | AG20: 12.83213265 | AH20: 11596.41269 | AI20: 0 | AJ20: 15 | AK20: 11596.41269
A21: =Input!A21 -> T - 14 | B21: =Input!B21 -> Soundwave | C21: =Input!C21 -> 15-06-2018 | D21: =IF(Input!D21="Southern Yellow Pine","SYP",IF(Input!D21="Douglas-fir","DF",IF(Input!D21="SPF (spruce pine fir)","SPF","Other"))) -> SYP | E21: =IF(RIGHT(Input!E21,4)="inch","Imperial","SI") -> Imperial | F21: =IF(E21="Imperial",IF(Input!G21="1.5x3.5","2x4",IF(Input!G21="1.5x5.5","2x6",IF(Input!G21="1.5x7.25","2x8",IF(Input!G21="1.5x9.25","2x10",IF(Input!G21="1.5x11.25","2x12",Input!G21))))),Input!G21) -> 2x8 | G21: =Input!L21 -> No. 2 | H21: =IF(RIGHT(Input!E21,4)="inch",VALUE(LEFT(Input!E21,LEN(Input!E21)-4)),VALUE(LEFT(Input!E21,LEN(Input!E21)-10))*0.393701) -> 1.5 | I21: =IF(RIGHT(Input!F21,4)="inch",VALUE(LEFT(Input!F21,LEN(Input!F21)-4)),VALUE(LEFT(Input!F21,LEN(Input!F21)-10))*0.393701) -> 7.25 | J21: =IF(RIGHT(Input!H21,4)="Feet",VALUE(LEFT(Input!H21,LEN(Input!H21)-4)),VALUE(LEFT(Input!H21,LEN(Input!H21)-5))*3.28084166666666) -> 12.001 | K21: =IF(RIGHT(Input!I21,2)="LB",VALUE(LEFT(Input!I21,LEN(Input!I21)-2)),VALUE(LEFT(Input!I21,LEN(Input!I21)-2))*2.20462) -> 28.290033 | L21: =VALUE(LEFT(Input!J21,LEN(Input!J21)-3)) -> 639.13 | M21: 1.585820265 | N21: =IF(Input!M21>0,Input!M21,IF(Input!N21>0,Input!N21*2.20462,K21)) -> 28.290033 | O21: 1.585820265 | P21: =Input!O21 -> 0 | Q21: =Menu!V$11 -> 15 | R21: =IF(Input!O21>0,O21*(1.857-(0.0237*Menu!V$11))/(1.857-(0.0237*Input!O21)),O21) -> 1.585820265 | T21: T - 14 | U21: Soundwave | V21: 15-06-2018 | W21: SYP | X21: 2x8 | Y21: No. 2 | Z21: Imperial | AA21: 3.810002057 | AB21: 18.41500994 | AC21: 3.6579048 | AD21: 12.83213265 | AE21: 639.13 | AF21: 10933.85013 | AG21: 12.83213265 | AH21: 10933.85013 | AI21: 0 | AJ21: 15 | AK21: 10933.85013
A22: =Input!A22 -> T - 15 | B22: =Input!B22 -> Soundwave | C22: =Input!C22 -> 15-06-2018 | D22: =IF(Input!D22="Southern Yellow Pine","SYP",IF(Input!D22="Douglas-fir","DF",IF(Input!D22="SPF (spruce pine fir)","SPF","Other"))) -> SYP | E22: =IF(RIGHT(Input!E22,4)="inch","Imperial","SI") -> Imperial | F22: =IF(E22="Imperial",IF(Input!G22="1.5x3.5","2x4",IF(Input!G22="1.5x5.5","2x6",IF(Input!G22="1.5x7.25","2x8",IF(Input!G22="1.5x9.25","2x10",IF(Input!G22="1.5x11.25","2x12",Input!G22))))),Input!G22) -> 2x8 | G22: =Input!L22 -> No. 1 | H22: =IF(RIGHT(Input!E22,4)="inch",VALUE(LEFT(Input!E22,LEN(Input!E22)-4)),VALUE(LEFT(Input!E22,LEN(Input!E22)-10))*0.393701) -> 1.5 | I22: =IF(RIGHT(Input!F22,4)="inch",VALUE(LEFT(Input!F22,LEN(Input!F22)-4)),VALUE(LEFT(Input!F22,LEN(Input!F22)-10))*0.393701) -> 7.25 | J22: =IF(RIGHT(Input!H22,4)="Feet",VALUE(LEFT(Input!H22,LEN(Input!H22)-4)),VALUE(LEFT(Input!H22,LEN(Input!H22)-5))*3.28084166666666) -> 12.001 | K22: =IF(RIGHT(Input!I22,2)="LB",VALUE(LEFT(Input!I22,LEN(Input!I22)-2)),VALUE(LEFT(Input!I22,LEN(Input!I22)-2))*2.20462) -> 28.290033 | L22: =VALUE(LEFT(Input!J22,LEN(Input!J22)-3)) -> 722.95 | M22: 2.029046879 | N22: =IF(Input!M22>0,Input!M22,IF(Input!N22>0,Input!N22*2.20462,K22)) -> 28.290033 | O22: 2.029046879 | P22: =Input!O22 -> 0 | Q22: =Menu!V$11 -> 15 | R22: =IF(Input!O22>0,O22*(1.857-(0.0237*Menu!V$11))/(1.857-(0.0237*Input!O22)),O22) -> 2.029046879 | T22: T - 15 | U22: Soundwave | V22: 15-06-2018 | W22: SYP | X22: 2x8 | Y22: No. 1 | Z22: Imperial | AA22: 3.810002057 | AB22: 18.41500994 | AC22: 3.6579048 | AD22: 12.83213265 | AE22: 722.95 | AF22: 13989.79126 | AG22: 12.83213265 | AH22: 13989.79126 | AI22: 0 | AJ22: 15 | AK22: 13989.79126
A23: =Input!A23 -> T - 16 | B23: =Input!B23 -> Soundwave | C23: =Input!C23 -> 15-06-2018 | D23: =IF(Input!D23="Southern Yellow Pine","SYP",IF(Input!D23="Douglas-fir","DF",IF(Input!D23="SPF (spruce pine fir)","SPF","Other"))) -> SYP | E23: =IF(RIGHT(Input!E23,4)="inch","Imperial","SI") -> Imperial | F23: =IF(E23="Imperial",IF(Input!G23="1.5x3.5","2x4",IF(Input!G23="1.5x5.5","2x6",IF(Input!G23="1.5x7.25","2x8",IF(Input!G23="1.5x9.25","2x10",IF(Input!G23="1.5x11.25","2x12",Input!G23))))),Input!G23) -> 2x8 | G23: =Input!L23 -> No. 2 | H23: =IF(RIGHT(Input!E23,4)="inch",VALUE(LEFT(Input!E23,LEN(Input!E23)-4)),VALUE(LEFT(Input!E23,LEN(Input!E23)-10))*0.393701) -> 1.5 | I23: =IF(RIGHT(Input!F23,4)="inch",VALUE(LEFT(Input!F23,LEN(Input!F23)-4)),VALUE(LEFT(Input!F23,LEN(Input!F23)-10))*0.393701) -> 7.25 | J23: =IF(RIGHT(Input!H23,4)="Feet",VALUE(LEFT(Input!H23,LEN(Input!H23)-4)),VALUE(LEFT(Input!H23,LEN(Input!H23)-5))*3.28084166666666) -> 12.001 | K23: =IF(RIGHT(Input!I23,2)="LB",VALUE(LEFT(Input!I23,LEN(Input!I23)-2)),VALUE(LEFT(Input!I23,LEN(Input!I23)-2))*2.20462) -> 28.290033 | L23: =VALUE(LEFT(Input!J23,LEN(Input!J23)-3)) -> 678.46 | M23: 1.786997944 | N23: =IF(Input!M23>0,Input!M23,IF(Input!N23>0,Input!N23*2.20462,K23)) -> 28.290033 | O23: 1.786997944 | P23: =Input!O23 -> 0 | Q23: =Menu!V$11 -> 15 | R23: =IF(Input!O23>0,O23*(1.857-(0.0237*Menu!V$11))/(1.857-(0.0237*Input!O23)),O23) -> 1.786997944 | T23: T - 16 | U23: Soundwave | V23: 15-06-2018 | W23: SYP | X23: 2x8 | Y23: No. 2 | Z23: Imperial | AA23: 3.810002057 | AB23: 18.41500994 | AC23: 3.6579048 | AD23: 12.83213265 | AE23: 678.46 | AF23: 12320.92195 | AG23: 12.83213265 | AH23: 12320.92195 | AI23: 0 | AJ23: 15 | AK23: 12320.92195
A24: =Input!A24 -> T - 17 | B24: =Input!B24 -> Soundwave | C24: =Input!C24 -> 15-06-2018 | D24: =IF(Input!D24="Southern Yellow Pine","SYP",IF(Input!D24="Douglas-fir","DF",IF(Input!D24="SPF (spruce pine fir)","SPF","Other"))) -> SYP | E24: =IF(RIGHT(Input!E24,4)="inch","Imperial","SI") -> Imperial | F24: =IF(E24="Imperial",IF(Input!G24="1.5x3.5","2x4",IF(Input!G24="1.5x5.5","2x6",IF(Input!G24="1.5x7.25","2x8",IF(Input!G24="1.5x9.25","2x10",IF(Input!G24="1.5x11.25","2x12",Input!G24))))),Input!G24) -> 2x8 | G24: =Input!L24 -> No. 2 | H24: =IF(RIGHT(Input!E24,4)="inch",VALUE(LEFT(Input!E24,LEN(Input!E24)-4)),VALUE(LEFT(Input!E24,LEN(Input!E24)-10))*0.393701) -> 1.5 | I24: =IF(RIGHT(Input!F24,4)="inch",VALUE(LEFT(Input!F24,LEN(Input!F24)-4)),VALUE(LEFT(Input!F24,LEN(Input!F24)-10))*0.393701) -> 7.25 | J24: =IF(RIGHT(Input!H24,4)="Feet",VALUE(LEFT(Input!H24,LEN(Input!H24)-4)),VALUE(LEFT(Input!H24,LEN(Input!H24)-5))*3.28084166666666) -> 12.001 | K24: =IF(RIGHT(Input!I24,2)="LB",VALUE(LEFT(Input!I24,LEN(Input!I24)-2)),VALUE(LEFT(Input!I24,LEN(Input!I24)-2))*2.20462) -> 28.290033 | L24: =VALUE(LEFT(Input!J24,LEN(Input!J24)-3)) -> 648.53 | M24: 1.632810176 | N24: =IF(Input!M24>0,Input!M24,IF(Input!N24>0,Input!N24*2.20462,K24)) -> 28.290033 | O24: 1.632810176 | P24: =Input!O24 -> 0 | Q24: =Menu!V$11 -> 15 | R24: =IF(Input!O24>0,O24*(1.857-(0.0237*Menu!V$11))/(1.857-(0.0237*Input!O24)),O24) -> 1.632810176 | T24: T - 17 | U24: Soundwave | V24: 15-06-2018 | W24: SYP | X24: 2x8 | Y24: No. 2 | Z24: Imperial | AA24: 3.810002057 | AB24: 18.41500994 | AC24: 3.6579048 | AD24: 12.83213265 | AE24: 648.53 | AF24: 11257.83429 | AG24: 12.83213265 | AH24: 11257.83429 | AI24: 0 | AJ24: 15 | AK24: 11257.83429
A25: =Input!A25 -> T - 18 | B25: =Input!B25 -> Soundwave | C25: =Input!C25 -> 15-06-2018 | D25: =IF(Input!D25="Southern Yellow Pine","SYP",IF(Input!D25="Douglas-fir","DF",IF(Input!D25="SPF (spruce pine fir)","SPF","Other"))) -> SYP | E25: =IF(RIGHT(Input!E25,4)="inch","Imperial","SI") -> Imperial | F25: =IF(E25="Imperial",IF(Input!G25="1.5x3.5","2x4",IF(Input!G25="1.5x5.5","2x6",IF(Input!G25="1.5x7.25","2x8",IF(Input!G25="1.5x9.25","2x10",IF(Input!G25="1.5x11.25","2x12",Input!G25))))),Input!G25) -> 2x8 | G25: =Input!L25 -> No. 1 | H25: =IF(RIGHT(Input!E25,4)="inch",VALUE(LEFT(Input!E25,LEN(Input!E25)-4)),VALUE(LEFT(Input!E25,LEN(Input!E25)-10))*0.393701) -> 1.5 | I25: =IF(RIGHT(Input!F25,4)="inch",VALUE(LEFT(Input!F25,LEN(Input!F25)-4)),VALUE(LEFT(Input!F25,LEN(Input!F25)-10))*0.393701) -> 7.25 | J25: =IF(RIGHT(Input!H25,4)="Feet",VALUE(LEFT(Input!H25,LEN(Input!H25)-4)),VALUE(LEFT(Input!H25,LEN(Input!H25)-5))*3.28084166666666) -> 12.001 | K25: =IF(RIGHT(Input!I25,2)="LB",VALUE(LEFT(Input!I25,LEN(Input!I25)-2)),VALUE(LEFT(Input!I25,LEN(Input!I25)-2))*2.20462) -> 28.290033 | L25: =VALUE(LEFT(Input!J25,LEN(Input!J25)-3)) -> 722.95 | M25: 2.029046879 | N25: =IF(Input!M25>0,Input!M25,IF(Input!N25>0,Input!N25*2.20462,K25)) -> 28.290033 | O25: 2.029046879 | P25: =Input!O25 -> 0 | Q25: =Menu!V$11 -> 15 | R25: =IF(Input!O25>0,O25*(1.857-(0.0237*Menu!V$11))/(1.857-(0.0237*Input!O25)),O25) -> 2.029046879 | T25: T - 18 | U25: Soundwave | V25: 15-06-2018 | W25: SYP | X25: 2x8 | Y25: No. 1 | Z25: Imperial | AA25: 3.810002057 | AB25: 18.41500994 | AC25: 3.6579048 | AD25: 12.83213265 | AE25: 722.95 | AF25: 13989.79126 | AG25: 12.83213265 | AH25: 13989.79126 | AI25: 0 | AJ25: 15 | AK25: 13989.79126
A26: =Input!A26 -> T - 19 | B26: =Input!B26 -> Soundwave | C26: =Input!C26 -> 15-06-2018 | D26: =IF(Input!D26="Southern Yellow Pine","SYP",IF(Input!D26="Douglas-fir","DF",IF(Input!D26="SPF (spruce pine fir)","SPF","Other"))) -> SYP | E26: =IF(RIGHT(Input!E26,4)="inch","Imperial","SI") -> SI | F26: =IF(E26="Imperial",IF(Input!G26="1.5x3.5","2x4",IF(Input!G26="1.5x5.5","2x6",IF(Input!G26="1.5x7.25","2x8",IF(Input!G26="1.5x9.25","2x10",IF(Input!G26="1.5x11.25","2x12",Input!G26))))),Input!G26) -> 3.81x18.415 | G26: =Input!L26 -> No. 2 | H26: =IF(RIGHT(Input!E26,4)="inch",VALUE(LEFT(Input!E26,LEN(Input!E26)-4)),VALUE(LEFT(Input!E26,LEN(Input!E26)-10))*0.393701) -> 1.50000081 | I26: =IF(RIGHT(Input!F26,4)="inch",VALUE(LEFT(Input!F26,LEN(Input!F26)-4)),VALUE(LEFT(Input!F26,LEN(Input!F26)-10))*0.393701) -> 7.250003915 | J26: =IF(RIGHT(Input!H26,4)="Feet",VALUE(LEFT(Input!H26,LEN(Input!H26)-4)),VALUE(LEFT(Input!H26,LEN(Input!H26)-5))*3.28084166666666) -> 12.00131882 | K26: =IF(RIGHT(Input!I26,2)="LB",VALUE(LEFT(Input!I26,LEN(Input!I26)-2)),VALUE(LEFT(Input!I26,LEN(Input!I26)-2))*2.20462) -> 28.29072957 | L26: =VALUE(LEFT(Input!J26,LEN(Input!J26)-3)) -> 668.18 | M26: 1.733342009 | N26: =IF(Input!M26>0,Input!M26,IF(Input!N26>0,Input!N26*2.20462,K26)) -> 28.29072957 | O26: 1.733342009 | P26: =Input!O26 -> 0 | Q26: =Menu!V$11 -> 15 | R26: =IF(Input!O26>0,O26*(1.857-(0.0237*Menu!V$11))/(1.857-(0.0237*Input!O26)),O26) -> 1.733342009 | T26: T - 19 | U26: Soundwave | V26: 15-06-2018 | W26: SYP | X26: 3.81x18.415 | Y26: No. 2 | Z26: SI | AA26: 3.810004115 | AB26: 18.41501989 | AC26: 3.658001975 | AD26: 12.83244861 | AE26: 668.18 | AF26: 11950.97715 | AG26: 12.83244861 | AH26: 11950.97715 | AI26: 0 | AJ26: 15 | AK26: 11950.97715
A27: =Input!A27 -> T - 20 | B27: =Input!B27 -> Soundwave | C27: =Input!C27 -> 15-06-2018 | D27: =IF(Input!D27="Southern Yellow Pine","SYP",IF(Input!D27="Douglas-fir","DF",IF(Input!D27="SPF (spruce pine fir)","SPF","Other"))) -> SYP | E27: =IF(RIGHT(Input!E27,4)="inch","Imperial","SI") -> SI | F27: =IF(E27="Imperial",IF(Input!G27="1.5x3.5","2x4",IF(Input!G27="1.5x5.5","2x6",IF(Input!G27="1.5x7.25","2x8",IF(Input!G27="1.5x9.25","2x10",IF(Input!G27="1.5x11.25","2x12",Input!G27))))),Input!G27) -> 3.81x18.415 | G27: =Input!L27 -> No. 2 | H27: =IF(RIGHT(Input!E27,4)="inch",VALUE(LEFT(Input!E27,LEN(Input!E27)-4)),VALUE(LEFT(Input!E27,LEN(Input!E27)-10))*0.393701) -> 1.50000081 | I27: =IF(RIGHT(Input!F27,4)="inch",VALUE(LEFT(Input!F27,LEN(Input!F27)-4)),VALUE(LEFT(Input!F27,LEN(Input!F27)-10))*0.393701) -> 7.250003915 | J27: =IF(RIGHT(Input!H27,4)="Feet",VALUE(LEFT(Input!H27,LEN(Input!H27)-4)),VALUE(LEFT(Input!H27,LEN(Input!H27)-5))*3.28084166666666) -> 12.00131882 | K27: =IF(RIGHT(Input!I27,2)="LB",VALUE(LEFT(Input!I27,LEN(Input!I27)-2)),VALUE(LEFT(Input!I27,LEN(Input!I27)-2))*2.20462) -> 28.29072957 | L27: =VALUE(LEFT(Input!J27,LEN(Input!J27)-3)) -> 658.21 | M27: 1.682001081 | N27: =IF(Input!M27>0,Input!M27,IF(Input!N27>0,Input!N27*2.20462,K27)) -> 28.29072957 | O27: 1.682001081 | P27: =Input!O27 -> 0 | Q27: =Menu!V$11 -> 15 | R27: =IF(Input!O27>0,O27*(1.857-(0.0237*Menu!V$11))/(1.857-(0.0237*Input!O27)),O27) -> 1.682001081 | T27: T - 20 | U27: Soundwave | V27: 15-06-2018 | W27: SYP | X27: 3.81x18.415 | Y27: No. 2 | Z27: SI | AA27: 3.810004115 | AB27: 18.41501989 | AC27: 3.658001975 | AD27: 12.83244861 | AE27: 658.21 | AF27: 11596.99377 | AG27: 12.83244861 | AH27: 11596.99377 | AI27: 0 | AJ27: 15 | AK27: 11596.99377
A28: =Input!A28 -> T - 21 | B28: =Input!B28 -> Soundwave | C28: =Input!C28 -> 15-06-2018 | D28: =IF(Input!D28="Southern Yellow Pine","SYP",IF(Input!D28="Douglas-fir","DF",IF(Input!D28="SPF (spruce pine fir)","SPF","Other"))) -> SYP | E28: =IF(RIGHT(Input!E28,4)="inch","Imperial","SI") -> SI | F28: =IF(E28="Imperial",IF(Input!G28="1.5x3.5","2x4",IF(Input!G28="1.5x5.5","2x6",IF(Input!G28="1.5x7.25","2x8",IF(Input!G28="1.5x9.25","2x10",IF(Input!G28="1.5x11.25","2x12",Input!G28))))),Input!G28) -> 3.81x18.415 | G28: =Input!L28 -> No. 2 | H28: =IF(RIGHT(Input!E28,4)="inch",VALUE(LEFT(Input!E28,LEN(Input!E28)-4)),VALUE(LEFT(Input!E28,LEN(Input!E28)-10))*0.393701) -> 1.50000081 | I28: =IF(RIGHT(Input!F28,4)="inch",VALUE(LEFT(Input!F28,LEN(Input!F28)-4)),VALUE(LEFT(Input!F28,LEN(Input!F28)-10))*0.393701) -> 7.250003915 | J28: =IF(RIGHT(Input!H28,4)="Feet",VALUE(LEFT(Input!H28,LEN(Input!H28)-4)),VALUE(LEFT(Input!H28,LEN(Input!H28)-5))*3.28084166666666) -> 12.00131882 | K28: =IF(RIGHT(Input!I28,2)="LB",VALUE(LEFT(Input!I28,LEN(Input!I28)-2)),VALUE(LEFT(Input!I28,LEN(Input!I28)-2))*2.20462) -> 28.29072957 | L28: =VALUE(LEFT(Input!J28,LEN(Input!J28)-3)) -> 639.13 | M28: 1.585899729 | N28: =IF(Input!M28>0,Input!M28,IF(Input!N28>0,Input!N28*2.20462,K28)) -> 28.29072957 | O28: 1.585899729 | P28: =Input!O28 -> 0 | Q28: =Menu!V$11 -> 15 | R28: =IF(Input!O28>0,O28*(1.857-(0.0237*Menu!V$11))/(1.857-(0.0237*Input!O28)),O28) -> 1.585899729 | T28: T - 21 | U28: Soundwave | V28: 15-06-2018 | W28: SYP | X28: 3.81x18.415 | Y28: No. 2 | Z28: SI | AA28: 3.810004115 | AB28: 18.41501989 | AC28: 3.658001975 | AD28: 12.83244861 | AE28: 639.13 | AF28: 10934.39802 | AG28: 12.83244861 | AH28: 10934.39802 | AI28: 0 | AJ28: 15 | AK28: 10934.39802
A29: =Input!A29 -> T - 22 | B29: =Input!B29 -> Soundwave | C29: =Input!C29 -> 15-06-2018 | D29: =IF(Input!D29="Southern Yellow Pine","SYP",IF(Input!D29="Douglas-fir","DF",IF(Input!D29="SPF (spruce pine fir)","SPF","Other"))) -> SYP | E29: =IF(RIGHT(Input!E29,4)="inch","Imperial","SI") -> SI | F29: =IF(E29="Imperial",IF(Input!G29="1.5x3.5","2x4",IF(Input!G29="1.5x5.5","2x6",IF(Input!G29="1.5x7.25","2x8",IF(Input!G29="1.5x9.25","2x10",IF(Input!G29="1.5x11.25","2x12",Input!G29))))),Input!G29) -> 3.81x18.415 | G29: =Input!L29 -> No. 1 | H29: =IF(RIGHT(Input!E29,4)="inch",VALUE(LEFT(Input!E29,LEN(Input!E29)-4)),VALUE(LEFT(Input!E29,LEN(Input!E29)-10))*0.393701) -> 1.50000081 | I29: =IF(RIGHT(Input!F29,4)="inch",VALUE(LEFT(Input!F29,LEN(Input!F29)-4)),VALUE(LEFT(Input!F29,LEN(Input!F29)-10))*0.393701) -> 7.250003915 | J29: =IF(RIGHT(Input!H29,4)="Feet",VALUE(LEFT(Input!H29,LEN(Input!H29)-4)),VALUE(LEFT(Input!H29,LEN(Input!H29)-5))*3.28084166666666) -> 12.00131882 | K29: =IF(RIGHT(Input!I29,2)="LB",VALUE(LEFT(Input!I29,LEN(Input!I29)-2)),VALUE(LEFT(Input!I29,LEN(Input!I29)-2))*2.20462) -> 28.29072957 | L29: =VALUE(LEFT(Input!J29,LEN(Input!J29)-3)) -> 711.29 | M29: 1.964222694 | N29: =IF(Input!M29>0,Input!M29,IF(Input!N29>0,Input!N29*2.20462,K29)) -> 28.29072957 | O29: 1.964222694 | P29: =Input!O29 -> 0 | Q29: =Menu!V$11 -> 15 | R29: =IF(Input!O29>0,O29*(1.857-(0.0237*Menu!V$11))/(1.857-(0.0237*Input!O29)),O29) -> 1.964222694 | T29: T - 22 | U29: Soundwave | V29: 15-06-2018 | W29: SYP | X29: 3.81x18.415 | Y29: No. 1 | Z29: SI | AA29: 3.810004115 | AB29: 18.41501989 | AC29: 3.658001975 | AD29: 12.83244861 | AE29: 711.29 | AF29: 13542.84406 | AG29: 12.83244861 | AH29: 13542.84406 | AI29: 0 | AJ29: 15 | AK29: 13542.84406
A30: =Input!A30 -> T - 23 | B30: =Input!B30 -> Soundwave | C30: =Input!C30 -> 15-06-2018 | D30: =IF(Input!D30="Southern Yellow Pine","SYP",IF(Input!D30="Douglas-fir","DF",IF(Input!D30="SPF (spruce pine fir)","SPF","Other"))) -> SYP | E30: =IF(RIGHT(Input!E30,4)="inch","Imperial","SI") -> Imperial | F30: =IF(E30="Imperial",IF(Input!G30="1.5x3.5","2x4",IF(Input!G30="1.5x5.5","2x6",IF(Input!G30="1.5x7.25","2x8",IF(Input!G30="1.5x9.25","2x10",IF(Input!G30="1.5x11.25","2x12",Input!G30))))),Input!G30) -> 2x8 | G30: =Input!L30 -> No. 2 | H30: =IF(RIGHT(Input!E30,4)="inch",VALUE(LEFT(Input!E30,LEN(Input!E30)-4)),VALUE(LEFT(Input!E30,LEN(Input!E30)-10))*0.393701) -> 1.5 | I30: =IF(RIGHT(Input!F30,4)="inch",VALUE(LEFT(Input!F30,LEN(Input!F30)-4)),VALUE(LEFT(Input!F30,LEN(Input!F30)-10))*0.393701) -> 7.25 | J30: =IF(RIGHT(Input!H30,4)="Feet",VALUE(LEFT(Input!H30,LEN(Input!H30)-4)),VALUE(LEFT(Input!H30,LEN(Input!H30)-5))*3.28084166666666) -> 12.001 | K30: =IF(RIGHT(Input!I30,2)="LB",VALUE(LEFT(Input!I30,LEN(Input!I30)-2)),VALUE(LEFT(Input!I30,LEN(Input!I30)-2))*2.20462) -> 28.290033 | L30: =VALUE(LEFT(Input!J30,LEN(Input!J30)-3)) -> 668.18 | M30: 1.733255158 | N30: =IF(Input!M30>0,Input!M30,IF(Input!N30>0,Input!N30*2.20462,K30)) -> 28.290033 | O30: 1.733255158 | P30: =Input!O30 -> 0 | Q30: =Menu!V$11 -> 15 | R30: =IF(Input!O30>0,O30*(1.857-(0.0237*Menu!V$11))/(1.857-(0.0237*Input!O30)),O30) -> 1.733255158 | T30: T - 23 | U30: Soundwave | V30: 15-06-2018 | W30: SYP | X30: 2x8 | Y30: No. 2 | Z30: Imperial | AA30: 3.810002057 | AB30: 18.41500994 | AC30: 3.6579048 | AD30: 12.83213265 | AE30: 668.18 | AF30: 11950.37833 | AG30: 12.83213265 | AH30: 11950.37833 | AI30: 0 | AJ30: 15 | AK30: 11950.37833
A31: =Input!A31 -> T - 24 | B31: =Input!B31 -> Soundwave | C31: =Input!C31 -> 15-06-2018 | D31: =IF(Input!D31="Southern Yellow Pine","SYP",IF(Input!D31="Douglas-fir","DF",IF(Input!D31="SPF (spruce pine fir)","SPF","Other"))) -> SYP | E31: =IF(RIGHT(Input!E31,4)="inch","Imperial","SI") -> Imperial | F31: =IF(E31="Imperial",IF(Input!G31="1.5x3.5","2x4",IF(Input!G31="1.5x5.5","2x6",IF(Input!G31="1.5x7.25","2x8",IF(Input!G31="1.5x9.25","2x10",IF(Input!G31="1.5x11.25","2x12",Input!G31))))),Input!G31) -> 2x8 | G31: =Input!L31 -> No. 2 | H31: =IF(RIGHT(Input!E31,4)="inch",VALUE(LEFT(Input!E31,LEN(Input!E31)-4)),VALUE(LEFT(Input!E31,LEN(Input!E31)-10))*0.393701) -> 1.5 | I31: =IF(RIGHT(Input!F31,4)="inch",VALUE(LEFT(Input!F31,LEN(Input!F31)-4)),VALUE(LEFT(Input!F31,LEN(Input!F31)-10))*0.393701) -> 7.25 | J31: =IF(RIGHT(Input!H31,4)="Feet",VALUE(LEFT(Input!H31,LEN(Input!H31)-4)),VALUE(LEFT(Input!H31,LEN(Input!H31)-5))*3.28084166666666) -> 12.001 | K31: =IF(RIGHT(Input!I31,2)="LB",VALUE(LEFT(Input!I31,LEN(Input!I31)-2)),VALUE(LEFT(Input!I31,LEN(Input!I31)-2))*2.20462) -> 28.290033 | L31: =VALUE(LEFT(Input!J31,LEN(Input!J31)-3)) -> 639.13 | M31: 1.585820265 | N31: =IF(Input!M31>0,Input!M31,IF(Input!N31>0,Input!N31*2.20462,K31)) -> 28.290033 | O31: 1.585820265 | P31: =Input!O31 -> 0 | Q31: =Menu!V$11 -> 15 | R31: =IF(Input!O31>0,O31*(1.857-(0.0237*Menu!V$11))/(1.857-(0.0237*Input!O31)),O31) -> 1.585820265 | T31: T - 24 | U31: Soundwave | V31: 15-06-2018 | W31: SYP | X31: 2x8 | Y31: No. 2 | Z31: Imperial | AA31: 3.810002057 | AB31: 18.41500994 | AC31: 3.6579048 | AD31: 12.83213265 | AE31: 639.13 | AF31: 10933.85013 | AG31: 12.83213265 | AH31: 10933.85013 | AI31: 0 | AJ31: 15 | AK31: 10933.85013
A32: =Input!A32 -> T - 25 | B32: =Input!B32 -> Soundwave | C32: =Input!C32 -> 15-06-2018 | D32: =IF(Input!D32="Southern Yellow Pine","SYP",IF(Input!D32="Douglas-fir","DF",IF(Input!D32="SPF (spruce pine fir)","SPF","Other"))) -> SYP | E32: =IF(RIGHT(Input!E32,4)="inch","Imperial","SI") -> Imperial | F32: =IF(E32="Imperial",IF(Input!G32="1.5x3.5","2x4",IF(Input!G32="1.5x5.5","2x6",IF(Input!G32="1.5x7.25","2x8",IF(Input!G32="1.5x9.25","2x10",IF(Input!G32="1.5x11.25","2x12",Input!G32))))),Input!G32) -> 2x8 | G32: =Input!L32 -> No. 1 | H32: =IF(RIGHT(Input!E32,4)="inch",VALUE(LEFT(Input!E32,LEN(Input!E32)-4)),VALUE(LEFT(Input!E32,LEN(Input!E32)-10))*0.393701) -> 1.5 | I32: =IF(RIGHT(Input!F32,4)="inch",VALUE(LEFT(Input!F32,LEN(Input!F32)-4)),VALUE(LEFT(Input!F32,LEN(Input!F32)-10))*0.393701) -> 7.25 | J32: =IF(RIGHT(Input!H32,4)="Feet",VALUE(LEFT(Input!H32,LEN(Input!H32)-4)),VALUE(LEFT(Input!H32,LEN(Input!H32)-5))*3.28084166666666) -> 12.001 | K32: =IF(RIGHT(Input!I32,2)="LB",VALUE(LEFT(Input!I32,LEN(Input!I32)-2)),VALUE(LEFT(Input!I32,LEN(Input!I32)-2))*2.20462) -> 28.290033 | L32: =VALUE(LEFT(Input!J32,LEN(Input!J32)-3)) -> 722.95 | M32: 2.029046879 | N32: =IF(Input!M32>0,Input!M32,IF(Input!N32>0,Input!N32*2.20462,K32)) -> 28.290033 | O32: 2.029046879 | P32: =Input!O32 -> 0 | Q32: =Menu!V$11 -> 15 | R32: =IF(Input!O32>0,O32*(1.857-(0.0237*Menu!V$11))/(1.857-(0.0237*Input!O32)),O32) -> 2.029046879 | T32: T - 25 | U32: Soundwave | V32: 15-06-2018 | W32: SYP | X32: 2x8 | Y32: No. 1 | Z32: Imperial | AA32: 3.810002057 | AB32: 18.41500994 | AC32: 3.6579048 | AD32: 12.83213265 | AE32: 722.95 | AF32: 13989.79126 | AG32: 12.83213265 | AH32: 13989.79126 | AI32: 0 | AJ32: 15 | AK32: 13989.79126
A33: =Input!A33 -> T - 26 | B33: =Input!B33 -> Soundwave | C33: =Input!C33 -> 15-06-2018 | D33: =IF(Input!D33="Southern Yellow Pine","SYP",IF(Input!D33="Douglas-fir","DF",IF(Input!D33="SPF (spruce pine fir)","SPF","Other"))) -> SYP | E33: =IF(RIGHT(Input!E33,4)="inch","Imperial","SI") -> Imperial | F33: =IF(E33="Imperial",IF(Input!G33="1.5x3.5","2x4",IF(Input!G33="1.5x5.5","2x6",IF(Input!G33="1.5x7.25","2x8",IF(Input!G33="1.5x9.25","2x10",IF(Input!G33="1.5x11.25","2x12",Input!G33))))),Input!G33) -> 2x8 | G33: =Input!L33 -> No. 2 | H33: =IF(RIGHT(Input!E33,4)="inch",VALUE(LEFT(Input!E33,LEN(Input!E33)-4)),VALUE(LEFT(Input!E33,LEN(Input!E33)-10))*0.393701) -> 1.5 | I33: =IF(RIGHT(Input!F33,4)="inch",VALUE(LEFT(Input!F33,LEN(Input!F33)-4)),VALUE(LEFT(Input!F33,LEN(Input!F33)-10))*0.393701) -> 7.25 | J33: =IF(RIGHT(Input!H33,4)="Feet",VALUE(LEFT(Input!H33,LEN(Input!H33)-4)),VALUE(LEFT(Input!H33,LEN(Input!H33)-5))*3.28084166666666) -> 12.001 | K33: =IF(RIGHT(Input!I33,2)="LB",VALUE(LEFT(Input!I33,LEN(Input!I33)-2)),VALUE(LEFT(Input!I33,LEN(Input!I33)-2))*2.20462) -> 28.290033 | L33: =VALUE(LEFT(Input!J33,LEN(Input!J33)-3)) -> 668.18 | M33: 1.733255158 | N33: =IF(Input!M33>0,Input!M33,IF(Input!N33>0,Input!N33*2.20462,K33)) -> 28.290033 | O33: 1.733255158 | P33: =Input!O33 -> 0 | Q33: =Menu!V$11 -> 15 | R33: =IF(Input!O33>0,O33*(1.857-(0.0237*Menu!V$11))/(1.857-(0.0237*Input!O33)),O33) -> 1.733255158 | T33: T - 26 | U33: Soundwave | V33: 15-06-2018 | W33: SYP | X33: 2x8 | Y33: No. 2 | Z33: Imperial | AA33: 3.810002057 | AB33: 18.41500994 | AC33: 3.6579048 | AD33: 12.83213265 | AE33: 668.18 | AF33: 11950.37833 | AG33: 12.83213265 | AH33: 11950.37833 | AI33: 0 | AJ33: 15 | AK33: 11950.37833
A34: =Input!A34 -> T - 27 | B34: =Input!B34 -> Soundwave | C34: =Input!C34 -> 15-06-2018 | D34: =IF(Input!D34="Southern Yellow Pine","SYP",IF(Input!D34="Douglas-fir","DF",IF(Input!D34="SPF (spruce pine fir)","SPF","Other"))) -> SYP | E34: =IF(RIGHT(Input!E34,4)="inch","Imperial","SI") -> Imperial | F34: =IF(E34="Imperial",IF(Input!G34="1.5x3.5","2x4",IF(Input!G34="1.5x5.5","2x6",IF(Input!G34="1.5x7.25","2x8",IF(Input!G34="1.5x9.25","2x10",IF(Input!G34="1.5x11.25","2x12",Input!G34))))),Input!G34) -> 2x8 | G34: =Input!L34 -> No. 2 | H34: =IF(RIGHT(Input!E34,4)="inch",VALUE(LEFT(Input!E34,LEN(Input!E34)-4)),VALUE(LEFT(Input!E34,LEN(Input!E34)-10))*0.393701) -> 1.5 | I34: =IF(RIGHT(Input!F34,4)="inch",VALUE(LEFT(Input!F34,LEN(Input!F34)-4)),VALUE(LEFT(Input!F34,LEN(Input!F34)-10))*0.393701) -> 7.25 | J34: =IF(RIGHT(Input!H34,4)="Feet",VALUE(LEFT(Input!H34,LEN(Input!H34)-4)),VALUE(LEFT(Input!H34,LEN(Input!H34)-5))*3.28084166666666) -> 12.001 | K34: =IF(RIGHT(Input!I34,2)="LB",VALUE(LEFT(Input!I34,LEN(Input!I34)-2)),VALUE(LEFT(Input!I34,LEN(Input!I34)-2))*2.20462) -> 28.290033 | L34: =VALUE(LEFT(Input!J34,LEN(Input!J34)-3)) -> 648.53 | M34: 1.632810176 | N34: =IF(Input!M34>0,Input!M34,IF(Input!N34>0,Input!N34*2.20462,K34)) -> 28.290033 | O34: 1.632810176 | P34: =Input!O34 -> 0 | Q34: =Menu!V$11 -> 15 | R34: =IF(Input!O34>0,O34*(1.857-(0.0237*Menu!V$11))/(1.857-(0.0237*Input!O34)),O34) -> 1.632810176 | T34: T - 27 | U34: Soundwave | V34: 15-06-2018 | W34: SYP | X34: 2x8 | Y34: No. 2 | Z34: Imperial | AA34: 3.810002057 | AB34: 18.41500994 | AC34: 3.6579048 | AD34: 12.83213265 | AE34: 648.53 | AF34: 11257.83429 | AG34: 12.83213265 | AH34: 11257.83429 | AI34: 0 | AJ34: 15 | AK34: 11257.83429
A35: =Input!A35 -> T - 28 | B35: =Input!B35 -> Soundwave | C35: =Input!C35 -> 15-06-2018 | D35: =IF(Input!D35="Southern Yellow Pine","SYP",IF(Input!D35="Douglas-fir","DF",IF(Input!D35="SPF (spruce pine fir)","SPF","Other"))) -> SYP | E35: =IF(RIGHT(Input!E35,4)="inch","Imperial","SI") -> Imperial | F35: =IF(E35="Imperial",IF(Input!G35="1.5x3.5","2x4",IF(Input!G35="1.5x5.5","2x6",IF(Input!G35="1.5x7.25","2x8",IF(Input!G35="1.5x9.25","2x10",IF(Input!G35="1.5x11.25","2x12",Input!G35))))),Input!G35) -> 2x8 | G35: =Input!L35 -> No. 1 | H35: =IF(RIGHT(Input!E35,4)="inch",VALUE(LEFT(Input!E35,LEN(Input!E35)-4)),VALUE(LEFT(Input!E35,LEN(Input!E35)-10))*0.393701) -> 1.5 | I35: =IF(RIGHT(Input!F35,4)="inch",VALUE(LEFT(Input!F35,LEN(Input!F35)-4)),VALUE(LEFT(Input!F35,LEN(Input!F35)-10))*0.393701) -> 7.25 | J35: =IF(RIGHT(Input!H35,4)="Feet",VALUE(LEFT(Input!H35,LEN(Input!H35)-4)),VALUE(LEFT(Input!H35,LEN(Input!H35)-5))*3.28084166666666) -> 12.001 | K35: =IF(RIGHT(Input!I35,2)="LB",VALUE(LEFT(Input!I35,LEN(Input!I35)-2)),VALUE(LEFT(Input!I35,LEN(Input!I35)-2))*2.20462) -> 28.290033 | L35: =VALUE(LEFT(Input!J35,LEN(Input!J35)-3)) -> 722.95 | M35: 2.029046879 | N35: =IF(Input!M35>0,Input!M35,IF(Input!N35>0,Input!N35*2.20462,K35)) -> 28.290033 | O35: 2.029046879 | P35: =Input!O35 -> 0 | Q35: =Menu!V$11 -> 15 | R35: =IF(Input!O35>0,O35*(1.857-(0.0237*Menu!V$11))/(1.857-(0.0237*Input!O35)),O35) -> 2.029046879 | T35: T - 28 | U35: Soundwave | V35: 15-06-2018 | W35: SYP | X35: 2x8 | Y35: No. 1 | Z35: Imperial | AA35: 3.810002057 | AB35: 18.41500994 | AC35: 3.6579048 | AD35: 12.83213265 | AE35: 722.95 | AF35: 13989.79126 | AG35: 12.83213265 | AH35: 13989.79126 | AI35: 0 | AJ35: 15 | AK35: 13989.79126
A36: =Input!A36 -> x | B36: =Input!B36 -> Soundwave | C36: =Input!C36 -> 15-06-2018 | D36: =IF(Input!D36="Southern Yellow Pine","SYP",IF(Input!D36="Douglas-fir","DF",IF(Input!D36="SPF (spruce pine fir)","SPF","Other"))) -> SYP | E36: =IF(RIGHT(Input!E36,4)="inch","Imperial","SI") -> Imperial | F36: =IF(E36="Imperial",IF(Input!G36="1.5x3.5","2x4",IF(Input!G36="1.5x5.5","2x6",IF(Input!G36="1.5x7.25","2x8",IF(Input!G36="1.5x9.25","2x10",IF(Input!G36="1.5x11.25","2x12",Input!G36))))),Input!G36) -> 2x8 | G36: =Input!L36 -> No. 2 | H36: =IF(RIGHT(Input!E36,4)="inch",VALUE(LEFT(Input!E36,LEN(Input!E36)-4)),VALUE(LEFT(Input!E36,LEN(Input!E36)-10))*0.393701) -> 1.5 | I36: =IF(RIGHT(Input!F36,4)="inch",VALUE(LEFT(Input!F36,LEN(Input!F36)-4)),VALUE(LEFT(Input!F36,LEN(Input!F36)-10))*0.393701) -> 7.25 | J36: =IF(RIGHT(Input!H36,4)="Feet",VALUE(LEFT(Input!H36,LEN(Input!H36)-4)),VALUE(LEFT(Input!H36,LEN(Input!H36)-5))*3.28084166666666) -> 12 | K36: =IF(RIGHT(Input!I36,2)="LB",VALUE(LEFT(Input!I36,LEN(Input!I36)-2)),VALUE(LEFT(Input!I36,LEN(Input!I36)-2))*2.20462) -> 28.287676 | L36: =VALUE(LEFT(Input!J36,LEN(Input!J36)-3)) -> 668.18 | M36: 1.732966337 | N36: =IF(Input!M36>0,Input!M36,IF(Input!N36>0,Input!N36*2.20462,K36)) -> 28.287676 | O36: 1.732966337 | P36: =Input!O36 -> 0 | Q36: =Menu!V$11 -> 15 | R36: =IF(Input!O36>0,O36*(1.857-(0.0237*Menu!V$11))/(1.857-(0.0237*Input!O36)),O36) -> 1.732966337 | T36: x | U36: Soundwave | V36: 15-06-2018 | W36: SYP | X36: 2x8 | Y36: No. 2 | Z36: Imperial | AA36: 3.810002057 | AB36: 18.41500994 | AC36: 3.6576 | AD36: 12.83106353 | AE36: 668.18 | AF36: 11948.38698 | AG36: 12.83106353 | AH36: 11948.38698 | AI36: 0 | AJ36: 15 | AK36: 11948.38698
A37: =Input!A37 -> Y | B37: =Input!B37 -> Vibration | C37: =Input!C37 -> 15-06-2018 | D37: =IF(Input!D37="Southern Yellow Pine","SYP",IF(Input!D37="Douglas-fir","DF",IF(Input!D37="SPF (spruce pine fir)","SPF","Other"))) -> DF | E37: =IF(RIGHT(Input!E37,4)="inch","Imperial","SI") -> Imperial | F37: =IF(E37="Imperial",IF(Input!G37="1.5x3.5","2x4",IF(Input!G37="1.5x5.5","2x6",IF(Input!G37="1.5x7.25","2x8",IF(Input!G37="1.5x9.25","2x10",IF(Input!G37="1.5x11.25","2x12",Input!G37))))),Input!G37) -> 1.5x7.2 | G37: =Input!L37 -> No. 1 | H37: =IF(RIGHT(Input!E37,4)="inch",VALUE(LEFT(Input!E37,LEN(Input!E37)-4)),VALUE(LEFT(Input!E37,LEN(Input!E37)-10))*0.393701) -> 1.5 | I37: =IF(RIGHT(Input!F37,4)="inch",VALUE(LEFT(Input!F37,LEN(Input!F37)-4)),VALUE(LEFT(Input!F37,LEN(Input!F37)-10))*0.393701) -> 7.2 | J37: =IF(RIGHT(Input!H37,4)="Feet",VALUE(LEFT(Input!H37,LEN(Input!H37)-4)),VALUE(LEFT(Input!H37,LEN(Input!H37)-5))*3.28084166666666) -> 12 | K37: =IF(RIGHT(Input!I37,2)="LB",VALUE(LEFT(Input!I37,LEN(Input!I37)-2)),VALUE(LEFT(Input!I37,LEN(Input!I37)-2))*2.20462) -> 29.77813 | L37: =VALUE(LEFT(Input!J37,LEN(Input!J37)-3)) -> 6.45 | M37: 1.923786566 | N37: =IF(Input!M37>0,Input!M37,IF(Input!N37>0,Input!N37*2.20462,K37)) -> 29.77813 | O37: 1.923786566 | P37: =Input!O37 -> 0 | Q37: =Menu!V$11 -> 15 | R37: =IF(Input!O37>0,O37*(1.857-(0.0237*Menu!V$11))/(1.857-(0.0237*Input!O37)),O37) -> 1.923786566 | T37: Y | U37: Vibration | V37: 15-06-2018 | W37: DF | X37: 1.5x7.2 | Y37: No. 1 | Z37: Imperial | AA37: 3.810002057 | AB37: 18.28800988 | AC37: 3.6576 | AD37: 13.50712154 | AE37: 6.45 | AF37: 13264.04667 | AG37: 13.50712154 | AH37: 13264.04667 | AI37: 0 | AJ37: 15 | AK37: 13264.04667
A38: =Input!A38 -> Y - 1 | B38: =Input!B38 -> Vibration | C38: =Input!C38 -> 15-06-2018 | D38: =IF(Input!D38="Southern Yellow Pine","SYP",IF(Input!D38="Douglas-fir","DF",IF(Input!D38="SPF (spruce pine fir)","SPF","Other"))) -> DF | E38: =IF(RIGHT(Input!E38,4)="inch","Imperial","SI") -> Imperial | F38: =IF(E38="Imperial",IF(Input!G38="1.5x3.5","2x4",IF(Input!G38="1.5x5.5","2x6",IF(Input!G38="1.5x7.25","2x8",IF(Input!G38="1.5x9.25","2x10",IF(Input!G38="1.5x11.25","2x12",Input!G38))))),Input!G38) -> 1.5x7.2 | G38: =Input!L38 -> No. 2 | H38: =IF(RIGHT(Input!E38,4)="inch",VALUE(LEFT(Input!E38,LEN(Input!E38)-4)),VALUE(LEFT(Input!E38,LEN(Input!E38)-10))*0.393701) -> 1.5 | I38: =IF(RIGHT(Input!F38,4)="inch",VALUE(LEFT(Input!F38,LEN(Input!F38)-4)),VALUE(LEFT(Input!F38,LEN(Input!F38)-10))*0.393701) -> 7.2 | J38: =IF(RIGHT(Input!H38,4)="Feet",VALUE(LEFT(Input!H38,LEN(Input!H38)-4)),VALUE(LEFT(Input!H38,LEN(Input!H38)-5))*3.28084166666666) -> 12 | K38: =IF(RIGHT(Input!I38,2)="LB",VALUE(LEFT(Input!I38,LEN(Input!I38)-2)),VALUE(LEFT(Input!I38,LEN(Input!I38)-2))*2.20462) -> 29.77813 | L38: =VALUE(LEFT(Input!J38,LEN(Input!J38)-3)) -> 6.05 | M38: 1.692576114 | N38: =IF(Input!M38>0,Input!M38,IF(Input!N38>0,Input!N38*2.20462,K38)) -> 29.77813 | O38: 1.692576114 | P38: =Input!O38 -> 0 | Q38: =Menu!V$11 -> 15 | R38: =IF(Input!O38>0,O38*(1.857-(0.0237*Menu!V$11))/(1.857-(0.0237*Input!O38)),O38) -> 1.692576114 | T38: Y - 1 | U38: Vibration | V38: 15-06-2018 | W38: DF | X38: 1.5x7.2 | Y38: No. 2 | Z38: Imperial | AA38: 3.810002057 | AB38: 18.28800988 | AC38: 3.6576 | AD38: 13.50712154 | AE38: 6.05 | AF38: 11669.90609 | AG38: 13.50712154 | AH38: 11669.90609 | AI38: 0 | AJ38: 15 | AK38: 11669.90609
A39: =Input!A39 -> Y - 2 | B39: =Input!B39 -> Vibration | C39: =Input!C39 -> 15-06-2018 | D39: =IF(Input!D39="Southern Yellow Pine","SYP",IF(Input!D39="Douglas-fir","DF",IF(Input!D39="SPF (spruce pine fir)","SPF","Other"))) -> DF | E39: =IF(RIGHT(Input!E39,4)="inch","Imperial","SI") -> Imperial | F39: =IF(E39="Imperial",IF(Input!G39="1.5x3.5","2x4",IF(Input!G39="1.5x5.5","2x6",IF(Input!G39="1.5x7.25","2x8",IF(Input!G39="1.5x9.25","2x10",IF(Input!G39="1.5x11.25","2x12",Input!G39))))),Input!G39) -> 1.5x7.2 | G39: =Input!L39 -> No. 1 | H39: =IF(RIGHT(Input!E39,4)="inch",VALUE(LEFT(Input!E39,LEN(Input!E39)-4)),VALUE(LEFT(Input!E39,LEN(Input!E39)-10))*0.393701) -> 1.5 | I39: =IF(RIGHT(Input!F39,4)="inch",VALUE(LEFT(Input!F39,LEN(Input!F39)-4)),VALUE(LEFT(Input!F39,LEN(Input!F39)-10))*0.393701) -> 7.2 | J39: =IF(RIGHT(Input!H39,4)="Feet",VALUE(LEFT(Input!H39,LEN(Input!H39)-4)),VALUE(LEFT(Input!H39,LEN(Input!H39)-5))*3.28084166666666) -> 12 | K39: =IF(RIGHT(Input!I39,2)="LB",VALUE(LEFT(Input!I39,LEN(Input!I39)-2)),VALUE(LEFT(Input!I39,LEN(Input!I39)-2))*2.20462) -> 29.77813 | L39: =VALUE(LEFT(Input!J39,LEN(Input!J39)-3)) -> 6.64 | M39: 2.038795269 | N39: =IF(Input!M39>0,Input!M39,IF(Input!N39>0,Input!N39*2.20462,K39)) -> 29.77813 | O39: 2.038795269 | P39: =Input!O39 -> 0 | Q39: =Menu!V$11 -> 15 | R39: =IF(Input!O39>0,O39*(1.857-(0.0237*Menu!V$11))/(1.857-(0.0237*Input!O39)),O39) -> 2.038795269 | T39: Y - 2 | U39: Vibration | V39: 15-06-2018 | W39: DF | X39: 1.5x7.2 | Y39: No. 1 | Z39: Imperial | AA39: 3.810002057 | AB39: 18.28800988 | AC39: 3.6576 | AD39: 13.50712154 | AE39: 6.64 | AF39: 14057.00407 | AG39: 13.50712154 | AH39: 14057.00407 | AI39: 0 | AJ39: 15 | AK39: 14057.00407
A40: =Input!A40 -> Y - 3 | B40: =Input!B40 -> Soundwave | C40: =Input!C40 -> 15-06-2018 | D40: =IF(Input!D40="Southern Yellow Pine","SYP",IF(Input!D40="Douglas-fir","DF",IF(Input!D40="SPF (spruce pine fir)","SPF","Other"))) -> DF | E40: =IF(RIGHT(Input!E40,4)="inch","Imperial","SI") -> Imperial | F40: =IF(E40="Imperial",IF(Input!G40="1.5x3.5","2x4",IF(Input!G40="1.5x5.5","2x6",IF(Input!G40="1.5x7.25","2x8",IF(Input!G40="1.5x9.25","2x10",IF(Input!G40="1.5x11.25","2x12",Input!G40))))),Input!G40) -> 1.5x7.2 | G40: =Input!L40 -> No. 2 | H40: =IF(RIGHT(Input!E40,4)="inch",VALUE(LEFT(Input!E40,LEN(Input!E40)-4)),VALUE(LEFT(Input!E40,LEN(Input!E40)-10))*0.393701) -> 1.5 | I40: =IF(RIGHT(Input!F40,4)="inch",VALUE(LEFT(Input!F40,LEN(Input!F40)-4)),VALUE(LEFT(Input!F40,LEN(Input!F40)-10))*0.393701) -> 7.2 | J40: =IF(RIGHT(Input!H40,4)="Feet",VALUE(LEFT(Input!H40,LEN(Input!H40)-4)),VALUE(LEFT(Input!H40,LEN(Input!H40)-5))*3.28084166666666) -> 12 | K40: =IF(RIGHT(Input!I40,2)="LB",VALUE(LEFT(Input!I40,LEN(Input!I40)-2)),VALUE(LEFT(Input!I40,LEN(Input!I40)-2))*2.20462) -> 29.77813 | L40: =VALUE(LEFT(Input!J40,LEN(Input!J40)-3)) -> 658.21 | M40: 1.782533896 | N40: =IF(Input!M40>0,Input!M40,IF(Input!N40>0,Input!N40*2.20462,K40)) -> 29.77813 | O40: 1.782533896 | P40: =Input!O40 -> 0 | Q40: =Menu!V$11 -> 15 | R40: =IF(Input!O40>0,O40*(1.857-(0.0237*Menu!V$11))/(1.857-(0.0237*Input!O40)),O40) -> 1.782533896 | T40: Y - 3 | U40: Soundwave | V40: 15-06-2018 | W40: DF | X40: 1.5x7.2 | Y40: No. 2 | Z40: Imperial | AA40: 3.810002057 | AB40: 18.28800988 | AC40: 3.6576 | AD40: 13.50712154 | AE40: 658.21 | AF40: 12290.14341 | AG40: 13.50712154 | AH40: 12290.14341 | AI40: 0 | AJ40: 15 | AK40: 12290.14341
A41: =Input!A41 -> Y - 4 | B41: =Input!B41 -> Soundwave | C41: =Input!C41 -> 15-06-2018 | D41: =IF(Input!D41="Southern Yellow Pine","SYP",IF(Input!D41="Douglas-fir","DF",IF(Input!D41="SPF (spruce pine fir)","SPF","Other"))) -> DF | E41: =IF(RIGHT(Input!E41,4)="inch","Imperial","SI") -> Imperial | F41: =IF(E41="Imperial",IF(Input!G41="1.5x3.5","2x4",IF(Input!G41="1.5x5.5","2x6",IF(Input!G41="1.5x7.25","2x8",IF(Input!G41="1.5x9.25","2x10",IF(Input!G41="1.5x11.25","2x12",Input!G41))))),Input!G41) -> 1.5x7.2 | G41: =Input!L41 -> No. 2 | H41: =IF(RIGHT(Input!E41,4)="inch",VALUE(LEFT(Input!E41,LEN(Input!E41)-4)),VALUE(LEFT(Input!E41,LEN(Input!E41)-10))*0.393701) -> 1.5 | I41: =IF(RIGHT(Input!F41,4)="inch",VALUE(LEFT(Input!F41,LEN(Input!F41)-4)),VALUE(LEFT(Input!F41,LEN(Input!F41)-10))*0.393701) -> 7.2 | J41: =IF(RIGHT(Input!H41,4)="Feet",VALUE(LEFT(Input!H41,LEN(Input!H41)-4)),VALUE(LEFT(Input!H41,LEN(Input!H41)-5))*3.28084166666666) -> 12 | K41: =IF(RIGHT(Input!I41,2)="LB",VALUE(LEFT(Input!I41,LEN(Input!I41)-2)),VALUE(LEFT(Input!I41,LEN(Input!I41)-2))*2.20462) -> 29.77813 | L41: =VALUE(LEFT(Input!J41,LEN(Input!J41)-3)) -> 639.13 | M41: 1.680688589 | N41: =IF(Input!M41>0,Input!M41,IF(Input!N41>0,Input!N41*2.20462,K41)) -> 29.77813 | O41: 1.680688589 | P41: =Input!O41 -> 0 | Q41: =Menu!V$11 -> 15 | R41: =IF(Input!O41>0,O41*(1.857-(0.0237*Menu!V$11))/(1.857-(0.0237*Input!O41)),O41) -> 1.680688589 | T41: Y - 4 | U41: Soundwave | V41: 15-06-2018 | W41: DF | X41: 1.5x7.2 | Y41: No. 2 | Z41: Imperial | AA41: 3.810002057 | AB41: 18.28800988 | AC41: 3.6576 | AD41: 13.50712154 | AE41: 639.13 | AF41: 11587.94445 | AG41: 13.50712154 | AH41: 11587.94445 | AI41: 0 | AJ41: 15 | AK41: 11587.94445
A42: =Input!A42 -> Y - 5 | B42: =Input!B42 -> Soundwave | C42: =Input!C42 -> 15-06-2018 | D42: =IF(Input!D42="Southern Yellow Pine","SYP",IF(Input!D42="Douglas-fir","DF",IF(Input!D42="SPF (spruce pine fir)","SPF","Other"))) -> DF | E42: =IF(RIGHT(Input!E42,4)="inch","Imperial","SI") -> Imperial | F42: =IF(E42="Imperial",IF(Input!G42="1.5x3.5","2x4",IF(Input!G42="1.5x5.5","2x6",IF(Input!G42="1.5x7.25","2x8",IF(Input!G42="1.5x9.25","2x10",IF(Input!G42="1.5x11.25","2x12",Input!G42))))),Input!G42) -> 1.5x7.2 | G42: =Input!L42 -> No. 1 | H42: =IF(RIGHT(Input!E42,4)="inch",VALUE(LEFT(Input!E42,LEN(Input!E42)-4)),VALUE(LEFT(Input!E42,LEN(Input!E42)-10))*0.393701) -> 1.5 | I42: =IF(RIGHT(Input!F42,4)="inch",VALUE(LEFT(Input!F42,LEN(Input!F42)-4)),VALUE(LEFT(Input!F42,LEN(Input!F42)-10))*0.393701) -> 7.2 | J42: =IF(RIGHT(Input!H42,4)="Feet",VALUE(LEFT(Input!H42,LEN(Input!H42)-4)),VALUE(LEFT(Input!H42,LEN(Input!H42)-5))*3.28084166666666) -> 12 | K42: =IF(RIGHT(Input!I42,2)="LB",VALUE(LEFT(Input!I42,LEN(Input!I42)-2)),VALUE(LEFT(Input!I42,LEN(Input!I42)-2))*2.20462) -> 29.77813 | L42: =VALUE(LEFT(Input!J42,LEN(Input!J42)-3)) -> 735 | M42: 2.222713683 | N42: =IF(Input!M42>0,Input!M42,IF(Input!N42>0,Input!N42*2.20462,K42)) -> 29.77813 | O42: 2.222713683 | P42: =Input!O42 -> 0 | Q42: =Menu!V$11 -> 15 | R42: =IF(Input!O42>0,O42*(1.857-(0.0237*Menu!V$11))/(1.857-(0.0237*Input!O42)),O42) -> 2.222713683 | T42: Y - 5 | U42: Soundwave | V42: 15-06-2018 | W42: DF | X42: 1.5x7.2 | Y42: No. 1 | Z42: Imperial | AA42: 3.810002057 | AB42: 18.28800988 | AC42: 3.6576 | AD42: 13.50712154 | AE42: 735 | AF42: 15325.07739 | AG42: 13.50712154 | AH42: 15325.07739 | AI42: 0 | AJ42: 15 | AK42: 15325.07739
A43: =Input!A43 -> Y - 6 | B43: =Input!B43 -> Vibration | C43: =Input!C43 -> 15-06-2018 | D43: =IF(Input!D43="Southern Yellow Pine","SYP",IF(Input!D43="Douglas-fir","DF",IF(Input!D43="SPF (spruce pine fir)","SPF","Other"))) -> SPF | E43: =IF(RIGHT(Input!E43,4)="inch","Imperial","SI") -> SI | F43: =IF(E43="Imperial",IF(Input!G43="1.5x3.5","2x4",IF(Input!G43="1.5x5.5","2x6",IF(Input!G43="1.5x7.25","2x8",IF(Input!G43="1.5x9.25","2x10",IF(Input!G43="1.5x11.25","2x12",Input!G43))))),Input!G43) -> 3.81x18.288 | G43: =Input!L43 -> No. 2 | H43: =IF(RIGHT(Input!E43,4)="inch",VALUE(LEFT(Input!E43,LEN(Input!E43)-4)),VALUE(LEFT(Input!E43,LEN(Input!E43)-10))*0.393701) -> 1.50000081 | I43: =IF(RIGHT(Input!F43,4)="inch",VALUE(LEFT(Input!F43,LEN(Input!F43)-4)),VALUE(LEFT(Input!F43,LEN(Input!F43)-10))*0.393701) -> 7.200003888 | J43: =IF(RIGHT(Input!H43,4)="Feet",VALUE(LEFT(Input!H43,LEN(Input!H43)-4)),VALUE(LEFT(Input!H43,LEN(Input!H43)-5))*3.28084166666666) -> 12.00131882 | K43: =IF(RIGHT(Input!I43,2)="LB",VALUE(LEFT(Input!I43,LEN(Input!I43)-2)),VALUE(LEFT(Input!I43,LEN(Input!I43)-2))*2.20462) -> 25.28605898 | L43: =VALUE(LEFT(Input!J43,LEN(Input!J43)-3)) -> 6.45 | M43: 1.6341159 | N43: =IF(Input!M43>0,Input!M43,IF(Input!N43>0,Input!N43*2.20462,K43)) -> 25.28605898 | O43: 1.6341159 | P43: =Input!O43 -> 0 | Q43: =Menu!V$11 -> 15 | R43: =IF(Input!O43>0,O43*(1.857-(0.0237*Menu!V$11))/(1.857-(0.0237*Input!O43)),O43) -> 1.6341159 | T43: Y - 6 | U43: Vibration | V43: 15-06-2018 | W43: SPF | X43: 3.81x18.288 | Y43: No. 2 | Z43: SI | AA43: 3.810004115 | AB43: 18.28801975 | AC43: 3.658001975 | AD43: 11.46955406 | AE43: 6.45 | AF43: 11266.83694 | AG43: 11.46955406 | AH43: 11266.83694 | AI43: 0 | AJ43: 15 | AK43: 11266.83694
A44: =Input!A44 -> Y - 7 | B44: =Input!B44 -> Vibration | C44: =Input!C44 -> 15-06-2018 | D44: =IF(Input!D44="Southern Yellow Pine","SYP",IF(Input!D44="Douglas-fir","DF",IF(Input!D44="SPF (spruce pine fir)","SPF","Other"))) -> SPF | E44: =IF(RIGHT(Input!E44,4)="inch","Imperial","SI") -> SI | F44: =IF(E44="Imperial",IF(Input!G44="1.5x3.5","2x4",IF(Input!G44="1.5x5.5","2x6",IF(Input!G44="1.5x7.25","2x8",IF(Input!G44="1.5x9.25","2x10",IF(Input!G44="1.5x11.25","2x12",Input!G44))))),Input!G44) -> 3.81x18.288 | G44: =Input!L44 -> No. 2 | H44: =IF(RIGHT(Input!E44,4)="inch",VALUE(LEFT(Input!E44,LEN(Input!E44)-4)),VALUE(LEFT(Input!E44,LEN(Input!E44)-10))*0.393701) -> 1.50000081 | I44: =IF(RIGHT(Input!F44,4)="inch",VALUE(LEFT(Input!F44,LEN(Input!F44)-4)),VALUE(LEFT(Input!F44,LEN(Input!F44)-10))*0.393701) -> 7.200003888 | J44: =IF(RIGHT(Input!H44,4)="Feet",VALUE(LEFT(Input!H44,LEN(Input!H44)-4)),VALUE(LEFT(Input!H44,LEN(Input!H44)-5))*3.28084166666666) -> 12.00131882 | K44: =IF(RIGHT(Input!I44,2)="LB",VALUE(LEFT(Input!I44,LEN(Input!I44)-2)),VALUE(LEFT(Input!I44,LEN(Input!I44)-2))*2.20462) -> 25.28605898 | L44: =VALUE(LEFT(Input!J44,LEN(Input!J44)-3)) -> 6.05 | M44: 1.437719541 | N44: =IF(Input!M44>0,Input!M44,IF(Input!N44>0,Input!N44*2.20462,K44)) -> 25.28605898 | O44: 1.437719541 | P44: =Input!O44 -> 0 | Q44: =Menu!V$11 -> 15 | R44: =IF(Input!O44>0,O44*(1.857-(0.0237*Menu!V$11))/(1.857-(0.0237*Input!O44)),O44) -> 1.437719541 | T44: Y - 7 | U44: Vibration | V44: 15-06-2018 | W44: SPF | X44: 3.81x18.288 | Y44: No. 2 | Z44: SI | AA44: 3.810004115 | AB44: 18.28801975 | AC44: 3.658001975 | AD44: 11.46955406 | AE44: 6.05 | AF44: 9912.731184 | AG44: 11.46955406 | AH44: 9912.731184 | AI44: 0 | AJ44: 15 | AK44: 9912.731184
A45: =Input!A45 -> Y - 8 | B45: =Input!B45 -> Vibration | C45: =Input!C45 -> 15-06-2018 | D45: =IF(Input!D45="Southern Yellow Pine","SYP",IF(Input!D45="Douglas-fir","DF",IF(Input!D45="SPF (spruce pine fir)","SPF","Other"))) -> SPF | E45: =IF(RIGHT(Input!E45,4)="inch","Imperial","SI") -> SI | F45: =IF(E45="Imperial",IF(Input!G45="1.5x3.5","2x4",IF(Input!G45="1.5x5.5","2x6",IF(Input!G45="1.5x7.25","2x8",IF(Input!G45="1.5x9.25","2x10",IF(Input!G45="1.5x11.25","2x12",Input!G45))))),Input!G45) -> 3.81x18.288 | G45: =Input!L45 -> No. 2 | H45: =IF(RIGHT(Input!E45,4)="inch",VALUE(LEFT(Input!E45,LEN(Input!E45)-4)),VALUE(LEFT(Input!E45,LEN(Input!E45)-10))*0.393701) -> 1.50000081 | I45: =IF(RIGHT(Input!F45,4)="inch",VALUE(LEFT(Input!F45,LEN(Input!F45)-4)),VALUE(LEFT(Input!F45,LEN(Input!F45)-10))*0.393701) -> 7.200003888 | J45: =IF(RIGHT(Input!H45,4)="Feet",VALUE(LEFT(Input!H45,LEN(Input!H45)-4)),VALUE(LEFT(Input!H45,LEN(Input!H45)-5))*3.28084166666666) -> 12.00131882 | K45: =IF(RIGHT(Input!I45,2)="LB",VALUE(LEFT(Input!I45,LEN(Input!I45)-2)),VALUE(LEFT(Input!I45,LEN(Input!I45)-2))*2.20462) -> 25.28605898 | L45: =VALUE(LEFT(Input!J45,LEN(Input!J45)-3)) -> 6.64 | M45: 1.731807376 | N45: =IF(Input!M45>0,Input!M45,IF(Input!N45>0,Input!N45*2.20462,K45)) -> 25.28605898 | O45: 1.731807376 | P45: =Input!O45 -> 0 | Q45: =Menu!V$11 -> 15 | R45: =IF(Input!O45>0,O45*(1.857-(0.0237*Menu!V$11))/(1.857-(0.0237*Input!O45)),O45) -> 1.731807376 | T45: Y - 8 | U45: Vibration | V45: 15-06-2018 | W45: SPF | X45: 3.81x18.288 | Y45: No. 2 | Z45: SI | AA45: 3.810004115 | AB45: 18.28801975 | AC45: 3.658001975 | AD45: 11.46955406 | AE45: 6.64 | AF45: 11940.39622 | AG45: 11.46955406 | AH45: 11940.39622 | AI45: 0 | AJ45: 15 | AK45: 11940.39622
A46: =Input!A46 -> Y - 9 | B46: =Input!B46 -> Vibration | C46: =Input!C46 -> 15-06-2018 | D46: =IF(Input!D46="Southern Yellow Pine","SYP",IF(Input!D46="Douglas-fir","DF",IF(Input!D46="SPF (spruce pine fir)","SPF","Other"))) -> SPF | E46: =IF(RIGHT(Input!E46,4)="inch","Imperial","SI") -> Imperial | F46: =IF(E46="Imperial",IF(Input!G46="1.5x3.5","2x4",IF(Input!G46="1.5x5.5","2x6",IF(Input!G46="1.5x7.25","2x8",IF(Input!G46="1.5x9.25","2x10",IF(Input!G46="1.5x11.25","2x12",Input!G46))))),Input!G46) -> 1.5x7.2 | G46: =Input!L46 -> No. 1 | H46: =IF(RIGHT(Input!E46,4)="inch",VALUE(LEFT(Input!E46,LEN(Input!E46)-4)),VALUE(LEFT(Input!E46,LEN(Input!E46)-10))*0.393701) -> 1.5 | I46: =IF(RIGHT(Input!F46,4)="inch",VALUE(LEFT(Input!F46,LEN(Input!F46)-4)),VALUE(LEFT(Input!F46,LEN(Input!F46)-10))*0.393701) -> 7.2 | J46: =IF(RIGHT(Input!H46,4)="Feet",VALUE(LEFT(Input!H46,LEN(Input!H46)-4)),VALUE(LEFT(Input!H46,LEN(Input!H46)-5))*3.28084166666666) -> 12.001 | K46: =IF(RIGHT(Input!I46,2)="LB",VALUE(LEFT(Input!I46,LEN(Input!I46)-2)),VALUE(LEFT(Input!I46,LEN(Input!I46)-2))*2.20462) -> 25.285429 | L46: =VALUE(LEFT(Input!J46,LEN(Input!J46)-3)) -> 6.45 | M46: 1.633948491 | N46: =IF(Input!M46>0,Input!M46,IF(Input!N46>0,Input!N46*2.20462,K46)) -> 25.285429 | O46: 1.633948491 | P46: =Input!O46 -> 0 | Q46: =Menu!V$11 -> 15 | R46: =IF(Input!O46>0,O46*(1.857-(0.0237*Menu!V$11))/(1.857-(0.0237*Input!O46)),O46) -> 1.633948491 | T46: Y - 9 | U46: Vibration | V46: 15-06-2018 | W46: SPF | X46: 1.5x7.2 | Y46: No. 1 | Z46: Imperial | AA46: 3.810002057 | AB46: 18.28800988 | AC46: 3.6579048 | AD46: 11.46926831 | AE46: 6.45 | AF46: 11265.6827 | AG46: 11.46926831 | AH46: 11265.6827 | AI46: 0 | AJ46: 15 | AK46: 11265.6827
A47: =Input!A47 -> Y - 10 | B47: =Input!B47 -> Vibration | C47: =Input!C47 -> 15-06-2018 | D47: =IF(Input!D47="Southern Yellow Pine","SYP",IF(Input!D47="Douglas-fir","DF",IF(Input!D47="SPF (spruce pine fir)","SPF","Other"))) -> SPF | E47: =IF(RIGHT(Input!E47,4)="inch","Imperial","SI") -> Imperial | F47: =IF(E47="Imperial",IF(Input!G47="1.5x3.5","2x4",IF(Input!G47="1.5x5.5","2x6",IF(Input!G47="1.5x7.25","2x8",IF(Input!G47="1.5x9.25","2x10",IF(Input!G47="1.5x11.25","2x12",Input!G47))))),Input!G47) -> 1.5x7.2 | G47: =Input!L47 -> No. 1 | H47: =IF(RIGHT(Input!E47,4)="inch",VALUE(LEFT(Input!E47,LEN(Input!E47)-4)),VALUE(LEFT(Input!E47,LEN(Input!E47)-10))*0.393701) -> 1.5 | I47: =IF(RIGHT(Input!F47,4)="inch",VALUE(LEFT(Input!F47,LEN(Input!F47)-4)),VALUE(LEFT(Input!F47,LEN(Input!F47)-10))*0.393701) -> 7.2 | J47: =IF(RIGHT(Input!H47,4)="Feet",VALUE(LEFT(Input!H47,LEN(Input!H47)-4)),VALUE(LEFT(Input!H47,LEN(Input!H47)-5))*3.28084166666666) -> 12.001 | K47: =IF(RIGHT(Input!I47,2)="LB",VALUE(LEFT(Input!I47,LEN(Input!I47)-2)),VALUE(LEFT(Input!I47,LEN(Input!I47)-2))*2.20462) -> 25.285429 | L47: =VALUE(LEFT(Input!J47,LEN(Input!J47)-3)) -> 6.05 | M47: 1.437572253 | N47: =IF(Input!M47>0,Input!M47,IF(Input!N47>0,Input!N47*2.20462,K47)) -> 25.285429 | O47: 1.437572253 | P47: =Input!O47 -> 0 | Q47: =Menu!V$11 -> 15 | R47: =IF(Input!O47>0,O47*(1.857-(0.0237*Menu!V$11))/(1.857-(0.0237*Input!O47)),O47) -> 1.437572253 | T47: Y - 10 | U47: Vibration | V47: 15-06-2018 | W47: SPF | X47: 1.5x7.2 | Y47: No. 1 | Z47: Imperial | AA47: 3.810002057 | AB47: 18.28800988 | AC47: 3.6579048 | AD47: 11.46926831 | AE47: 6.05 | AF47: 9911.715668 | AG47: 11.46926831 | AH47: 9911.715668 | AI47: 0 | AJ47: 15 | AK47: 9911.715668
A48: =Input!A48 -> Y - 11 | B48: =Input!B48 -> Vibration | C48: =Input!C48 -> 15-06-2018 | D48: =IF(Input!D48="Southern Yellow Pine","SYP",IF(Input!D48="Douglas-fir","DF",IF(Input!D48="SPF (spruce pine fir)","SPF","Other"))) -> SPF | E48: =IF(RIGHT(Input!E48,4)="inch","Imperial","SI") -> Imperial | F48: =IF(E48="Imperial",IF(Input!G48="1.5x3.5","2x4",IF(Input!G48="1.5x5.5","2x6",IF(Input!G48="1.5x7.25","2x8",IF(Input!G48="1.5x9.25","2x10",IF(Input!G48="1.5x11.25","2x12",Input!G48))))),Input!G48) -> 1.5x7.2 | G48: =Input!L48 -> No. 1 | H48: =IF(RIGHT(Input!E48,4)="inch",VALUE(LEFT(Input!E48,LEN(Input!E48)-4)),VALUE(LEFT(Input!E48,LEN(Input!E48)-10))*0.393701) -> 1.5 | I48: =IF(RIGHT(Input!F48,4)="inch",VALUE(LEFT(Input!F48,LEN(Input!F48)-4)),VALUE(LEFT(Input!F48,LEN(Input!F48)-10))*0.393701) -> 7.2 | J48: =IF(RIGHT(Input!H48,4)="Feet",VALUE(LEFT(Input!H48,LEN(Input!H48)-4)),VALUE(LEFT(Input!H48,LEN(Input!H48)-5))*3.28084166666666) -> 12.001 | K48: =IF(RIGHT(Input!I48,2)="LB",VALUE(LEFT(Input!I48,LEN(Input!I48)-2)),VALUE(LEFT(Input!I48,LEN(Input!I48)-2))*2.20462) -> 25.285429 | L48: =VALUE(LEFT(Input!J48,LEN(Input!J48)-3)) -> 6.64 | M48: 1.73162996 | N48: =IF(Input!M48>0,Input!M48,IF(Input!N48>0,Input!N48*2.20462,K48)) -> 25.285429 | O48: 1.73162996 | P48: =Input!O48 -> 0 | Q48: =Menu!V$11 -> 15 | R48: =IF(Input!O48>0,O48*(1.857-(0.0237*Menu!V$11))/(1.857-(0.0237*Input!O48)),O48) -> 1.73162996 | T48: Y - 11 | U48: Vibration | V48: 15-06-2018 | W48: SPF | X48: 1.5x7.2 | Y48: No. 1 | Z48: Imperial | AA48: 3.810002057 | AB48: 18.28800988 | AC48: 3.6579048 | AD48: 11.46926831 | AE48: 6.64 | AF48: 11939.17298 | AG48: 11.46926831 | AH48: 11939.17298 | AI48: 0 | AJ48: 15 | AK48: 11939.17298
A49: =Input!A49 -> Y - 12 | B49: =Input!B49 -> Soundwave | C49: =Input!C49 -> 15-06-2018 | D49: =IF(Input!D49="Southern Yellow Pine","SYP",IF(Input!D49="Douglas-fir","DF",IF(Input!D49="SPF (spruce pine fir)","SPF","Other"))) -> SPF | E49: =IF(RIGHT(Input!E49,4)="inch","Imperial","SI") -> Imperial | F49: =IF(E49="Imperial",IF(Input!G49="1.5x3.5","2x4",IF(Input!G49="1.5x5.5","2x6",IF(Input!G49="1.5x7.25","2x8",IF(Input!G49="1.5x9.25","2x10",IF(Input!G49="1.5x11.25","2x12",Input!G49))))),Input!G49) -> 1.5x7.2 | G49: =Input!L49 -> No. 1 | H49: =IF(RIGHT(Input!E49,4)="inch",VALUE(LEFT(Input!E49,LEN(Input!E49)-4)),VALUE(LEFT(Input!E49,LEN(Input!E49)-10))*0.393701) -> 1.5 | I49: =IF(RIGHT(Input!F49,4)="inch",VALUE(LEFT(Input!F49,LEN(Input!F49)-4)),VALUE(LEFT(Input!F49,LEN(Input!F49)-10))*0.393701) -> 7.2 | J49: =IF(RIGHT(Input!H49,4)="Feet",VALUE(LEFT(Input!H49,LEN(Input!H49)-4)),VALUE(LEFT(Input!H49,LEN(Input!H49)-5))*3.28084166666666) -> 12.001 | K49: =IF(RIGHT(Input!I49,2)="LB",VALUE(LEFT(Input!I49,LEN(Input!I49)-2)),VALUE(LEFT(Input!I49,LEN(Input!I49)-2))*2.20462) -> 25.285429 | L49: =VALUE(LEFT(Input!J49,LEN(Input!J49)-3)) -> 648.53 | M49: 1.469528729 | N49: =IF(Input!M49>0,Input!M49,IF(Input!N49>0,Input!N49*2.20462,K49)) -> 25.285429 | O49: 1.469528729 | P49: =Input!O49 -> 0 | Q49: =Menu!V$11 -> 15 | R49: =IF(Input!O49>0,O49*(1.857-(0.0237*Menu!V$11))/(1.857-(0.0237*Input!O49)),O49) -> 1.469528729 | T49: Y - 12 | U49: Soundwave | V49: 15-06-2018 | W49: SPF | X49: 1.5x7.2 | Y49: No. 1 | Z49: Imperial | AA49: 3.810002057 | AB49: 18.28800988 | AC49: 3.6579048 | AD49: 11.46926831 | AE49: 648.53 | AF49: 10132.0479 | AG49: 11.46926831 | AH49: 10132.0479 | AI49: 0 | AJ49: 15 | AK49: 10132.0479
A50: =Input!A50 -> Y - 13 | B50: =Input!B50 -> Soundwave | C50: =Input!C50 -> 15-06-2018 | D50: =IF(Input!D50="Southern Yellow Pine","SYP",IF(Input!D50="Douglas-fir","DF",IF(Input!D50="SPF (spruce pine fir)","SPF","Other"))) -> SPF | E50: =IF(RIGHT(Input!E50,4)="inch","Imperial","SI") -> Imperial | F50: =IF(E50="Imperial",IF(Input!G50="1.5x3.5","2x4",IF(Input!G50="1.5x5.5","2x6",IF(Input!G50="1.5x7.25","2x8",IF(Input!G50="1.5x9.25","2x10",IF(Input!G50="1.5x11.25","2x12",Input!G50))))),Input!G50) -> 1.5x7.2 | G50: =Input!L50 -> No. 1 | H50: =IF(RIGHT(Input!E50,4)="inch",VALUE(LEFT(Input!E50,LEN(Input!E50)-4)),VALUE(LEFT(Input!E50,LEN(Input!E50)-10))*0.393701) -> 1.5 | I50: =IF(RIGHT(Input!F50,4)="inch",VALUE(LEFT(Input!F50,LEN(Input!F50)-4)),VALUE(LEFT(Input!F50,LEN(Input!F50)-10))*0.393701) -> 7.2 | J50: =IF(RIGHT(Input!H50,4)="Feet",VALUE(LEFT(Input!H50,LEN(Input!H50)-4)),VALUE(LEFT(Input!H50,LEN(Input!H50)-5))*3.28084166666666) -> 12.001 | K50: =IF(RIGHT(Input!I50,2)="LB",VALUE(LEFT(Input!I50,LEN(Input!I50)-2)),VALUE(LEFT(Input!I50,LEN(Input!I50)-2))*2.20462) -> 25.285429 | L50: =VALUE(LEFT(Input!J50,LEN(Input!J50)-3)) -> 639.13 | M50: 1.427237822 | N50: =IF(Input!M50>0,Input!M50,IF(Input!N50>0,Input!N50*2.20462,K50)) -> 25.285429 | O50: 1.427237822 | P50: =Input!O50 -> 0 | Q50: =Menu!V$11 -> 15 | R50: =IF(Input!O50>0,O50*(1.857-(0.0237*Menu!V$11))/(1.857-(0.0237*Input!O50)),O50) -> 1.427237822 | T50: Y - 13 | U50: Soundwave | V50: 15-06-2018 | W50: SPF | X50: 1.5x7.2 | Y50: No. 1 | Z50: Imperial | AA50: 3.810002057 | AB50: 18.28800988 | AC50: 3.6579048 | AD50: 11.46926831 | AE50: 639.13 | AF50: 9840.462243 | AG50: 11.46926831 | AH50: 9840.462243 | AI50: 0 | AJ50: 15 | AK50: 9840.462243
A51: =Input!A51 -> Y - 14 | B51: =Input!B51 -> Soundwave | C51: =Input!C51 -> 15-06-2018 | D51: =IF(Input!D51="Southern Yellow Pine","SYP",IF(Input!D51="Douglas-fir","DF",IF(Input!D51="SPF (spruce pine fir)","SPF","Other"))) -> SPF | E51: =IF(RIGHT(Input!E51,4)="inch","Imperial","SI") -> Imperial | F51: =IF(E51="Imperial",IF(Input!G51="1.5x3.5","2x4",IF(Input!G51="1.5x5.5","2x6",IF(Input!G51="1.5x7.25","2x8",IF(Input!G51="1.5x9.25","2x10",IF(Input!G51="1.5x11.25","2x12",Input!G51))))),Input!G51) -> 1.5x7.2 | G51: =Input!L51 -> No. 1 | H51: =IF(RIGHT(Input!E51,4)="inch",VALUE(LEFT(Input!E51,LEN(Input!E51)-4)),VALUE(LEFT(Input!E51,LEN(Input!E51)-10))*0.393701) -> 1.5 | I51: =IF(RIGHT(Input!F51,4)="inch",VALUE(LEFT(Input!F51,LEN(Input!F51)-4)),VALUE(LEFT(Input!F51,LEN(Input!F51)-10))*0.393701) -> 7.2 | J51: =IF(RIGHT(Input!H51,4)="Feet",VALUE(LEFT(Input!H51,LEN(Input!H51)-4)),VALUE(LEFT(Input!H51,LEN(Input!H51)-5))*3.28084166666666) -> 12.001 | K51: =IF(RIGHT(Input!I51,2)="LB",VALUE(LEFT(Input!I51,LEN(Input!I51)-2)),VALUE(LEFT(Input!I51,LEN(Input!I51)-2))*2.20462) -> 25.285429 | L51: =VALUE(LEFT(Input!J51,LEN(Input!J51)-3)) -> 722.95 | M51: 1.826141657 | N51: =IF(Input!M51>0,Input!M51,IF(Input!N51>0,Input!N51*2.20462,K51)) -> 25.285429 | O51: 1.826141657 | P51: =Input!O51 -> 0 | Q51: =Menu!V$11 -> 15 | R51: =IF(Input!O51>0,O51*(1.857-(0.0237*Menu!V$11))/(1.857-(0.0237*Input!O51)),O51) -> 1.826141657 | T51: Y - 14 | U51: Soundwave | V51: 15-06-2018 | W51: SPF | X51: 1.5x7.2 | Y51: No. 1 | Z51: Imperial | AA51: 3.810002057 | AB51: 18.28800988 | AC51: 3.6579048 | AD51: 11.46926831 | AE51: 722.95 | AF51: 12590.80845 | AG51: 11.46926831 | AH51: 12590.80845 | AI51: 0 | AJ51: 15 | AK51: 12590.80845
